Workbook

Sheet 全体コメント (hidden)
A1: 項番 | B1: 全体頁にかかるコメント | C1: 回答
A2: 1 | B2: 日本語/英語のスラッシュで区分する記載となっているが、従来みたく、位置で区分してほうが見やすいと思う。 →一部未対応の箇所がありましたので、指摘しています。
A3: 2 | B3: 全体的に文字が小さい。情報量により難しいかもしれないが文字サイズを統一できないか。 →フォントの変更や文字サイズを増やすことで対応したのを確認しましたが、文字サイズの統一まではできていないと思われます。
A4: 3 | B4: ヘッダー、フッダー（ページ）のサイズと位置を揃えられないか。余白に統一感がないように見える。 →ある程度改善したことを確認しました。
A5: 4 | B5: タイトルと表の間のスペースはこれくらい必要なもの？ 全体が小さくなり見づらくなるのでは。 →スペースを削って対応したことを確認しました。
A6: 5 | B6: 英語が長くなった場合、改行するのと文字を小さくするのは、どちらが見やすいか教えてほしい。 →対応未確認です。
A7: 6 | B7: 年度の黒枠に白色フォントが目立ちすぎるのでは。少しグレーにするなどの調整をしてほしい。 →対応したことを確認しました
A8: 7 | B8: 棒グラフにおいて目安としての横線があった方が見やすいのでは。全体的にグラフが横長で、変化が読み取りづらいです。 →対応未確認です。
A9: 8 | B9: グラフは本当に必要か？もっと良いグラフはないのか？上限・下限の理想的な設定は？などのアドバイスが欲しいです。 →対応未確認です。
A10: 9 | B10: 文字はメイリオ、数値はもっと見やすい別のフォントはないでしょうか。数値に限って言えば、メイリオが必ずしも見やすいわけではないと思います。 →英文と数値に関してはメイリオ→Arial本文に変更したことを確認しました。
A11: 10 | B11: 現在のDataBookは原色を使用していることもあり派手だったが、色合いが優しくなり、今どきの資料となった。 →改善点なので対応無し
A12: 11 | B12: デザインが説明会資料に近くなったので資料間で統一感が出た。 →改善点なので対応無し
A13: 12 | B13: 各ページのタイトル部分で斜体文字を使わなくなったが、こちらのほうが見やすい。 →改善点なので対応無し
A14: 13 | B14: 縦線をほとんど削除することで見た目がスッキリした。 →改善点なので対応無し
A15: 14 | B15: フォント、バランスなど従来のDATABOOKより先鋭的なデザインとなった。 →改善点なので対応無し
A16: 15 | B16: 一部のグラフや表でテキストボックスの配置が他の箇所と被っていたり、記載が見切れている箇所がありました。Officeバージョンの違いによる可能性がありますので、御社側で印刷して問題なければこちらで調整いたします。 | C16: 調整させていただきましたが、操作する際にズレてしまうかもしれません。まだ被って見えるようでしたら、ご調整いただけますと幸いです。

Sheet 進捗確認 (hidden)
C1: 進捗確認
D2: =NOW() -> 2023-09-08T15:29:20.680
B3: 表紙 | C3: 更新→OK
B4: 目次 | C4: 更新済
B5: 主要データ | C5: 配当関連が未更新
B6: 業界1(新車等) | C6: 更新済
B7: 業界2(輸出) | C7: 更新済
A8: ※ | B8: 業態ｼｪｱ | C8: DATABOOK改修後のチェック済＆英文依頼必要
A9: ※ | B9: ｸﾞﾙｰﾌﾟｼｪｱ | C9: DATABOOK改修後のチェック済＆英文依頼必要
A10: ※ | B10: ﾗﾝｷﾝｸﾞ | C10: DATABOOK改修後のチェック済
A11: ※ | B11: 地域別ﾗﾝｷﾝｸﾞ | C11: DATABOOK改修後のチェック済
B12: 業界3(二輪車) | C12: 更新済
B13: 会場別 | C13: 更新済
B14: 月次 | C14: 更新済
B15: ｾｸﾞﾒﾝﾄ | C15: 更新済
B16: AA(売上ｾｸﾞ) | C16: 更新済
B17: AA(手数料内訳) | C17: 更新済
B18: AA(低額車推移) | C18: 更新済
B19: AA(会員数) | C19: 更新済
B20: AA(二輪車AA) | C20: 更新済
B21: 中古車(売上ｾｸﾞ) | C21: 更新済
B22: リサイクル(売上ｾｸﾞ) | C22: 更新済
B23: 連結PL | C23: 更新済
B24: 連結BS | C24: 更新済
B25: CF | C25: 更新済
B26: 来期計画 | C26: 更新済
B27: 計算式 | C27: DATABOOK改修後のチェック→修正済
B28: 取扱の注意 | C28: DATABOOK改修後のチェック済

Sheet 表紙

Sheet 目次

Sheet 目次 (2) (hidden)

Sheet Ⅰ_主要ﾃﾞｰﾀ
R4: （単位：百万円、千株、社、人、％ Unit: Million Yen, Thousand Shares, No. of Companies, People, %）
F5: 2013.3 | G5: 2014.3 | H5: 2015.3 | I5: 2016.3 | J5: 2017.3 | K5: 2018.3 | L5: 2019.3 | M5: 2020.3 | N5: 2021.3 | O5: 2022.3 | P5: 2023.3 | Q5: 増減率 | R5: 過去10年 平均増減率
Q6: VS. Prev. year | R6: Avg YoY Change (10 year period)
B7: 連結経営成績 Consolidated Operating Results
C8: 売上高 Net Sales | F8: 63,243 | G8: 67,949 | H8: 67,466 | I8: 68,607 | J8: 67,179 | K8: 75,153 | L8: 79,908 | M8: 78,143 | N8: 74,874 | O8: 81,482 | P8: 88,778 | Q8: 9.0 | R8: 3.4
C9: 営業利益 Operating Profit | F9: 29,304 | G9: 32,680 | H9: 33,411 | I9: 34,491 | J9: 32,396 | K9: 36,071 | L9: 37,123 | M9: 36,009 | N9: 36,227 | O9: 41,574 | P9: 43,778 | Q9: 5.3 | R9: 4.1
C10: 経常利益 Ordinary Profit | F10: 29,884 | G10: 33,275 | H10: 34,027 | I10: 35,218 | J10: 32,999 | K10: 36,676 | L10: 38,039 | M10: 36,710 | N10: 36,996 | O10: 42,374 | P10: 44,491 | Q10: 5.0 | R10: 4.1
C11: 親会社株主に帰属する当期純利益 Profit Attributable to Owners of Parent | F11: 18,346 | G11: 19,966 | H11: 21,661 | I11: 22,477 | J11: 22,909 | K11: 24,285 | L11: 25,543 | M11: 20,634 | N11: 4,022 | O11: 29,745 | P11: 30,008 | Q11: 0.9 | R11: 5.0
C12: 包括利益 Comprehensive Income | F12: 18,453 | G12: 20,204 | H12: 21,454 | I12: 22,473 | J12: 22,895 | K12: 25,132 | L12: 25,848 | M12: 20,764 | N12: 4,628 | O12: 31,187 | P12: 30,458 | Q12: ▲ 2.3 | R12: 5.1
B13: 連結財政状態 Consolidated Financial Position
C14: 資産 Total Assets | F14: 154,543 | G14: 164,182 | H14: 174,106 | I14: 186,831 | J14: 197,374 | K14: 222,292 | L14: 232,703 | M14: 219,133 | N14: 210,699 | O14: 229,354 | P14: 242,352 | Q14: 5.7 | R14: 4.6
C15: 現金及び預金 Cash and Deposits | F15: 37,033 | G15: 46,318 | H15: 49,862 | I15: 62,290 | J15: 74,778 | K15: 39,622 | L15: 51,352 | M15: 50,729 | N15: 67,770 | O15: 79,380 | P15: 92,692 | Q15: 16.8 | R15: 9.6
C16: 負債 Total Liabilities | F16: 34,866 | G16: 32,080 | H16: 30,067 | I16: 31,647 | J16: 38,176 | K16: 50,102 | L16: 49,168 | M16: 35,153 | N16: 37,175 | O16: 46,880 | P16: 48,198 | Q16: 2.8 | R16: 3.3
C17: 有利子負債 Interest Bearing Debt | F17: 1,148 | G17: 670 | H17: 360 | I17: 255 | J17: 4,092 | K17: 3,569 | L17: 3,112 | M17: 3,060 | N17: 3,174 | O17: 2,828 | P17: 2,420 | Q17: ▲ 14.4 | R17: 7.7
C18: 純資産 Total Net Assets | F18: 119,676 | G18: 132,102 | H18: 144,039 | I18: 155,183 | J18: 159,197 | K18: 172,190 | L18: 183,535 | M18: 183,980 | N18: 173,524 | O18: 182,473 | P18: 194,154 | Q18: 6.4 | R18: 5.0
C19: 自己資本 Equity Capital | F19: 119,112 | G19: 131,348 | H19: 143,098 | I19: 154,155 | J19: 158,029 | K19: 170,767 | L19: 181,698 | M19: 181,939 | N19: 171,394 | O19: 179,880 | P19: 190,997 | Q19: 6.2 | R19: 4.8
B20: 1株当たりデータ Per Share Information
C21: EPS（円） EPS (Yen) | F21: 69.35 | G21: 77.29 | H21: 83.79 | I21: 86.92 | J21: 90.02 | K21: 95.59 | L21: 100.54 | M21: 82.44 | N21: 16.13 | O21: 119.80 | P21: 122.69 | Q21: - | R21: -
C22: 配当金（円） Dividend per Share (Yen) | F22: 30.75 | G22: 34.70 | H22: 37.70 | I22: 40.80 | J22: 46.40 | K22: 47.80 | L22: 50.40 | M22: 55.40 | N22: 55.50 | O22: 66.20 | P22: 67.50 | Q22: 2.0 | R22: 8.2
B23: その他 Others
C24: 営業利益率 Operating Margin | F24: 46.3 | G24: 48.1 | H24: 49.5 | I24: 50.3 | J24: 48.2 | K24: 48.0 | L24: 46.5 | M24: 46.1 | N24: 48.4 | O24: 51.0 | P24: 49.3 | Q24: - | R24: -
C25: ROE | F25: 15.3 | G25: 15.9 | H25: 15.8 | I25: 15.1 | J25: 14.7 | K25: 14.8 | L25: 14.5 | M25: 11.3 | N25: 2.3 | O25: 16.9 | P25: 16.2 | Q25: - | R25: -
C26: ROA | F26: 19.3 | G26: 20.9 | H26: 20.1 | I26: 19.5 | J26: 17.2 | K26: 17.5 | L26: 16.7 | M26: 16.2 | N26: 17.2 | O26: 19.3 | P26: 18.9 | Q26: - | R26: -
C27: 配当性向 Dividend Payout Ratio | F27: 44.3 | G27: 45.1 | H27: 45.1 | I27: 47.0 | J27: 51.5 | K27: 50.1 | L27: 50.1 | M27: 67.0 | N27: 344.5 | O27: 55.0 | P27: 55.0 | Q27: - | R27: -
C28: 自己資本比率 Equity Ratio | F28: 77.1 | G28: 80.0 | H28: 82.2 | I28: 82.5 | J28: 80.1 | K28: 76.8 | L28: 78.1 | M28: 83.0 | N28: 81.3 | O28: 78.4 | P28: 78.8 | Q28: - | R28: -
C29: 発行済株式数（自己株式除く） Number of Shares Outstanding (excl. Treasury Shares) | F29: 258,182 | G29: 258,421 | H29: 258,558 | I29: 258,147 | J29: 253,977 | K29: 254,105 | L29: 253,075 | M29: 249,532 | N29: 249,306 | O29: 245,198 | P29: 244,585 | Q29: ▲ 0.2 | R29: ▲ 0.5
C30: 自己株式数 Treasury Shares | F30: 55,067 | G30: 54,828 | H30: 54,691 | I30: 55,102 | J30: 59,272 | K30: 59,144 | L30: 60,174 | M30: 63,717 | N30: 63,943 | O30: 68,051 | P30: 12,414 | Q30: ▲ 81.8 | R30: ▲ 13.8
C31: 現車会員数（JBA除く） On-site Auction Members (excl. JBA) | F31: 45,139 | G31: 45,712 | H31: 46,307 | I31: 46,850 | J31: 47,111 | K31: 47,362 | L31: 48,723 | M31: 48,182 | N31: 48,058 | O31: 48,362 | P31: 48,490 | Q31: 0.3 | R31: 0.7
C32: CIS（インターネット）会員数 CIS (Internet) Members | F32: 27,072 | G32: 28,007 | H32: 28,815 | I32: 29,512 | J32: 29,966 | K32: 30,337 | L32: 31,639 | M32: 31,998 | N32: 32,538 | O32: 33,359 | P32: 33,934 | Q32: 1.7 | R32: 2.3
C33: TV（衛星）会員数 TV (Satellite Auction) Members | F33: 3,651 | G33: 3,486 | H33: 3,291 | I33: 3,101 | J33: 2,894 | K33: 2,623 | L33: 2,468 | M33: 2,342 | N33: 2,197 | O33: 2,081 | P33: 1,981 | Q33: ▲ 4.8 | R33: ▲ 5.9
C34: 会場数（JBA除く） Auction Sites (excl. JBA) | F34: 17 | G34: 17 | H34: 17 | I34: 17 | J34: 17 | K34: 19 | L34: 19 | M34: 19 | N34: 19 | O34: 19 | P34: 19 | Q34: 0.0 | R34: 1.1
C35: 従業員数 Employees | F35: 1,377 | G35: 1,348 | H35: 1,325 | I35: 1,252 | J35: 1,220 | K35: 1,369 | L35: 1,295 | M35: 1,260 | N35: 1,268 | O35: 1,263 | P35: 1,282 | Q35: 1.5 | R35: ▲ 0.7

Sheet Ⅱ-1-(1)_自動車業界関連指標
P4: （単位：千台、％ Unit：Thousand Vehicles, %）
E5: 2012 | F5: 2013 | G5: 2014 | H5: 2015 | I5: 2016 | J5: 2017 | K5: 2018 | L5: 2019 | M5: 2020 | N5: 2021 | O5: 2022 | P5: 過去10年 平均増減率
P6: Avg YoY Change (10 year period)
B7: 新車登録台数 | C7: 登録車 Ordinary Cars | E7: 3,390 | F7: 3,262 | G7: 3,290 | H7: 3,150 | I7: 3,244 | J7: 3,390 | K7: 3,347 | L7: 3,284 | M7: 2,880 | N7: 2,795 | O7: 2,563 | P7: ▲ 2.8
B8: No. of Registered New Vehicles | C8: 軽自動車 Mini Cars | E8: 1,979 | F8: 2,112 | G8: 2,272 | H8: 1,896 | I8: 1,725 | J8: 1,843 | K8: 1,924 | L8: 1,910 | M8: 1,718 | N8: 1,652 | O8: 1,638 | P8: ▲ 1.9
C9: 合計 Total | E9: 5,369 | F9: 5,375 | G9: 5,562 | H9: 5,046 | I9: 4,970 | J9: 5,234 | K9: 5,271 | L9: 5,195 | M9: 4,598 | N9: 4,448 | O9: 4,201 | P9: ▲ 2.4
C10: （増減率 YoY changes） | E10: (27.5) | F10: (0.1) | G10: (3.5) | H10: (▲ 9.3) | I10: (▲ 1.5) | J10: (5.3) | K10: (0.7) | L10: (▲ 1.5) | M10: (▲ 11.5) | N10: (▲ 3.3) | O10: (▲ 5.6) | P10: -
B11: 中古車登録台数 | C11: 登録車 Ordinary Cars | E11: 4,015 | F11: 3,892 | G11: 3,751 | H11: 3,732 | I11: 3,762 | J11: 3,865 | K11: 3,837 | L11: 3,841 | M11: 3,831 | N11: 3,728 | O11: 3,495 | P11: ▲ 1.4
B12: No. of Registered Used Vehicles | C12: 軽自動車 Mini Cars | E12: 2,903 | F12: 3,002 | G12: 3,088 | H12: 3,054 | I12: 2,993 | J12: 3,071 | K12: 3,113 | L12: 3,146 | M12: 3,035 | N12: 3,002 | O12: 2,806 | P12: ▲ 0.3
C13: 合計 Total | E13: 6,919 | F13: 6,895 | G13: 6,840 | H13: 6,786 | I13: 6,756 | J13: 6,937 | K13: 6,951 | L13: 6,988 | M13: 6,866 | N13: 6,731 | O13: 6,301 | P13: ▲ 0.9
C14: （増減率 YoY changes） | E14: (7.3) | F14: (▲ 0.3) | G14: (▲ 0.8) | H14: (▲ 0.8) | I14: (▲ 0.5) | J14: (2.7) | K14: (0.2) | L14: (0.5) | M14: (▲ 1.7) | N14: (▲ 2.0) | O14: (▲ 6.4) | P14: -
B15: 自動車保有台数 | C15: 合計 Total | E15: 76,140 | F15: 76,634 | G15: 77,204 | H15: 77,421 | I15: 77,769 | J15: 78,097 | K15: 78,309 | L15: 78,438 | M15: 78,484 | N15: 78,476 | O15: 78,548 | P15: 0.3
B16: No. of Vehicles Owned | C16: （増減率 YoY changes） | E16: (0.8) | F16: (0.6) | G16: (0.7) | H16: (0.3) | I16: (0.4) | J16: (0.4) | K16: (0.3) | L16: (0.2) | M16: (0.1) | N16: (▲ 0.0) | O16: (0.1) | P16: -
B17: （出所：(一社)日本自動車販売協会連合会、(一社)日本自動車工業会、(一社)全国軽自動車協会連合会、(独)統計センター）
B18: (Sources: Japan Automobile Dealers Association, Japan Automobile Manufacturers Association, Japan Light Motor Vehicle and Motorcycle Association, The National Statistics Center)

Sheet Ⅱ-1-(2)_中古車輸出台数
P4: （単位：千台、％ Unit：Thousand Vehicles, %）
D5: 2012 | E5: 2013 | F5: 2014 | G5: 2015 | H5: 2016 | I5: 2017 | J5: 2018 | K5: 2019 | L5: 2020 | M5: 2021 | N5: 2022 | O5: 増減率 | P5: 過去10年 平均増減率
O6: VS. Prev. year | P6: Avg YoY Change (10 year period)
B7: ロシア Russia | D7: 142 | E7: 167 | F7: 128 | G7: 49 | H7: 48 | I7: 69 | J7: 95 | K7: 122 | L7: 126 | M7: 162 | N7: 213 | O7: 31.6 | P7: 4.1
B8: アラブ首長国連邦 UAE | D8: 87 | E8: 98 | F8: 112 | G8: 136 | H8: 151 | I8: 144 | J8: 126 | K8: 171 | L8: 135 | M8: 133 | N8: 150 | O8: 13.1 | P8: 5.6
B9: ニュージーランド New Zealand | D9: 61 | E9: 91 | F9: 110 | G9: 118 | H9: 122 | I9: 135 | J9: 116 | K9: 111 | L9: 87 | M9: 104 | N9: 84 | O9: ▲ 19.9 | P9: 3.2
B10: チリ Chile | D10: 61 | E10: 78 | F10: 73 | G10: 64 | H10: 74 | I10: 91 | J10: 92 | K10: 80 | L10: 67 | M10: 88 | N10: 56 | O10: ▲ 36.4 | P10: ▲ 0.9
B11: モンゴル Mongolia | D11: 30 | E11: 34 | F11: 35 | G11: 31 | H11: 32 | I11: 44 | J11: 60 | K11: 60 | L11: 50 | M11: 63 | N11: 46 | O11: ▲ 27.2 | P11: 4.4
B12: フィリピン Philippines | D12: 23 | E12: 25 | F12: 27 | G12: 33 | H12: 36 | I12: 40 | J12: 38 | K12: 39 | L12: 29 | M12: 39 | N12: 37 | O12: ▲ 5.7 | P12: 4.7
B13: アフリカ州 Africa | D13: 214 | E13: 260 | F13: 282 | G13: 284 | H13: 227 | I13: 285 | J13: 340 | K13: 319 | L13: 284 | M13: 318 | N13: 303 | O13: ▲ 4.6 | P13: 3.5
B14: その他 Other | D14: 383 | E14: 406 | F14: 512 | G14: 535 | H14: 496 | I14: 487 | J14: 456 | K14: 390 | L14: 279 | M14: 313 | N14: 345 | O14: 10.0 | P14: ▲ 1.0
B15: 合計 Total | D15: 1,004 | E15: 1,163 | F15: 1,283 | G15: 1,254 | H15: 1,187 | I15: 1,297 | J15: 1,326 | K15: 1,295 | L15: 1,062 | M15: 1,224 | N15: 1,237 | O15: 1.0 | P15: 2.1
B16: (出所：財務省貿易統計)
B17: (Source: Trade Statistics of Japan Ministry of Finance)

Sheet Ⅱ-1-(3)_業態別AA出品台数
P4: （単位：千台、％ Unit: No. of Thousand Vehicles, %）
D5: 2012 | E5: 2013 | F5: 2014 | G5: 2015 | H5: 2016 | I5: 2017 | J5: 2018 | K5: 2019 | L5: 2020 | M5: 2021 | N5: 2022 | O5: 増減率 | P5: 過去10年 平均増減率
O6: VS. Prev. year | P6: Avg YoY Change (10 year period)
B7: 企業系 Company-affiliated | D7: 4,777 | E7: 4,653 | F7: 4,742 | G7: 4,699 | H7: 4,708 | I7: 4,840 | J7: 4,665 | K7: 4,783 | L7: 4,376 | M7: 4,383 | N7: 4,464 | O7: 1.8 | P7: ▲ 0.7
B8: （構成比 Share） | D8: (66.3) | E8: (66.0) | F8: (65.2) | G8: (65.4) | H8: (65.2) | I8: (64.3) | J8: (63.4) | K8: (62.6) | L8: (61.6) | M8: (62.6) | N8: (64.2) | O8: - | P8: -
B9: JU系 JU-affiliated | D9: 1,285 | E9: 1,236 | F9: 1,276 | G9: 1,279 | H9: 1,290 | I9: 1,339 | J9: 1,336 | K9: 1,407 | L9: 1,318 | M9: 1,277 | N9: 1,264 | O9: ▲ 1.0 | P9: ▲ 0.2
B10: （構成比 Share） | D10: (17.8) | E10: (17.6) | F10: (17.5) | G10: (17.8) | H10: (17.9) | I10: (17.8) | J10: (18.1) | K10: (18.4) | L10: (18.6) | M10: (18.2) | N10: (18.2) | O10: - | P10: -
B11: メーカー・ディーラー系 Manufacturer/Dealer-affiliated | D11: 1,147 | E11: 1,155 | F11: 1,258 | G11: 1,207 | H11: 1,215 | I11: 1,343 | J11: 1,360 | K11: 1,455 | L11: 1,410 | M11: 1,346 | N11: 1,220 | O11: ▲ 9.4 | P11: 0.6
B12: （構成比 Share） | D12: (15.9) | E12: (16.4) | F12: (17.3) | G12: (16.8) | H12: (16.9) | I12: (17.9) | J12: (18.5) | K12: (19.0) | L12: (19.8) | M12: (19.2) | N12: (17.6) | O12: - | P12: -
B13: 合計 Total | D13: 7,210 | E13: 7,045 | F13: 7,277 | G13: 7,186 | H13: 7,215 | I13: 7,523 | J13: 7,362 | K13: 7,645 | L13: 7,105 | M13: 7,007 | N13: 6,949 | O13: ▲ 0.8 | P13: ▲ 0.4
B14: (出所：(株)ユーストカー) (Source: USEDCAR Co., Ltd.)

Sheet Ⅱ-1-(4)_業界ｸﾞﾙｰﾌﾟ別出品台数
AA3: 過去10年 平均増減率1
AA4: （単位：千台、％ / Unit：No.of Thousand Vehicles, %）
C5: Group Name | D5: 2012 | F5: 2013 | H5: 2014 | J5: 2015 | L5: 2016 | N5: 2017 | P5: 2018 | R5: 2019 | T5: 2020 | V5: 2021 | X5: 2022 | Z5: 過去10年 平均増減率
Z6: Avg YoY Change (10 year period)
B7: グループ名 | D7: 台数 | E7: シェア | F7: 台数 | G7: シェア | H7: 台数 | I7: シェア | J7: 台数 | K7: シェア | L7: 台数 | M7: シェア | N7: 台数 | O7: シェア | P7: 台数 | Q7: シェア | R7: 台数 | S7: シェア | T7: 台数 | U7: シェア | V7: 台数 | W7: シェア | X7: 台数 | Y7: シェア | Z7: 台数 | AA7: シェア
B8: Group Name | D8: Vehicles | E8: Share | F8: Vehicles | G8: Share | H8: Vehicles | I8: Share | J8: Vehicles | K8: Share | L8: Vehicles | M8: Share | N8: Vehicles | O8: Share | P8: Vehicles | Q8: Share | R8: Vehicles | S8: Share | T8: Vehicles | U8: Share | V8: Vehicles | W8: Share | X8: Vehicles | Y8: Share | Z8: Vehicles | AA8: Share
B9: USS | D9: 2,269 | E9: 31.5 | F9: 2,238 | G9: 31.8 | H9: 2,347 | I9: 32.3 | J9: 2,374 | K9: 33.0 | L9: 2,345 | M9: 32.5 | N9: 2,586 | O9: 34.4 | P9: 2,900 | Q9: 39.4 | R9: 2,981 | S9: 39.0 | T9: 2,679 | U9: 37.7 | V9: 2,736 | W9: 39.1 | X9: 2,834 | Y9: 40.8 | Z9: 2.2 | AA9: 0.9p
B10: JAA | C10: ＵＳＳ | D10: 621 | E10: 8.6 | F10: 617 | G10: 8.8 | H10: 598 | I10: 8.2 | J10: 612 | K10: 8.5 | L10: 638 | M10: 8.9 | N10: 491 | O10: 6.5 | P10: 0 | Q10: 0 | R10: 0 | S10: 0 | T10: 0 | U10: 0 | V10: 0 | W10: 0 | X10: 0 | Y10: 0 | Z10: - | AA10: -
B11: TAA | C11: ＴＡＡ | D11: 697 | E11: 9.7 | F11: 678 | G11: 9.6 | H11: 721 | I11: 9.9 | J11: 708 | K11: 9.9 | L11: 723 | M11: 10.0 | N11: 810 | O11: 10.8 | P11: 831 | Q11: 11.3 | R11: 917 | S11: 12.0 | T11: 929 | U11: 13.1 | V11: 891 | W11: 12.7 | X11: 809 | Y11: 11.7 | Z11: 1.5 | AA11: 0.2p
B12: MIRIVE | C12: ＪＡＡ | D12: 128 | E12: 1.8 | F12: 119 | G12: 1.7 | H12: 116 | I12: 1.6 | J12: 115 | K12: 1.6 | L12: 128 | M12: 1.8 | N12: 144 | O12: 1.9 | P12: 167 | Q12: 2.3 | R12: 214 | S12: 2.8 | T12: 348 | U12: 4.9 | V12: 355 | W12: 5.1 | X12: 402 | Y12: 5.8 | Z12: 12.1 | AA12: 0.4p
B13: CAA | C13: ＣＡＡ | D13: 473 | E13: 6.6 | F13: 452 | G13: 6.4 | H13: 432 | I13: 5.9 | J13: 378 | K13: 5.3 | L13: 393 | M13: 5.5 | N13: 409 | O13: 5.4 | P13: 406 | Q13: 5.5 | R13: 429 | S13: 5.6 | T13: 390 | U13: 5.5 | V13: 374 | W13: 5.3 | X13: 357 | Y13: 5.1 | Z13: ▲ 2.8 | AA13: ▲0.2p
B14: アライAA AraiAA | C14: AraiＡＡ | D14: 330 | E14: 4.6 | F14: 346 | G14: 4.9 | H14: 355 | I14: 4.9 | J14: 344 | K14: 4.8 | L14: 344 | M14: 4.8 | N14: 365 | O14: 4.9 | P14: 374 | Q14: 5.1 | R14: 388 | S14: 5.1 | T14: 375 | U14: 5.3 | V14: 369 | W14: 5.3 | X14: 347 | Y14: 5.0 | Z14: 0.5 | AA14: 0.0p
B15: JU岐阜 JU Gifu | C15: ＬＡＡ | D15: 208 | E15: 2.9 | F15: 191 | G15: 2.7 | H15: 191 | I15: 2.6 | J15: 207 | K15: 2.9 | L15: 220 | M15: 3.1 | N15: 232 | O15: 3.1 | P15: 238 | Q15: 3.2 | R15: 246 | S15: 3.2 | T15: 222 | U15: 3.1 | V15: 220 | W15: 3.2 | X15: 216 | Y15: 3.1 | Z15: 0.4 | AA15: 0.0p
B16: その他 Other | C16: ＫＣＡＡ | D16: 2,482 | E16: 34.3 | F16: 2,401 | G16: 34.1 | H16: 2,512 | I16: 34.6 | J16: 2,443 | K16: 34.0 | L16: 2,420 | M16: 33.4 | N16: 2,481 | O16: 33.0 | P16: 2,444 | Q16: 33.2 | R16: 2,465 | S16: 32.3 | T16: 2,159 | U16: 30.4 | V16: 2,059 | W16: 29.3 | X16: 1,982 | Y16: 28.5 | Z16: ▲ 2.2 | AA16: ▲0.6p
B17: 業界合計 Industry Total | C17: Others | D17: 7,210 | E17: 100.0 | F17: 7,045 | G17: 100.0 | H17: 7,277 | I17: 100.0 | J17: 7,186 | K17: 100.0 | L17: 7,215 | M17: 100.0 | N17: 7,523 | O17: 100.0 | P17: 7,362 | Q17: 100.0 | R17: 7,645 | S17: 100.0 | T17: 7,105 | U17: 100.0 | V17: 7,007 | W17: 100.0 | X17: 6,949 | Y17: 100.0 | Z17: ▲ 0.4 | AA17: -
B18: (出所：(株)ユーストカー) | C18: Industry Total
B19: (Source: USEDCAR Co., Ltd.)

Sheet Ⅱ-1-(5)_USS会場出品台数ﾗﾝｷﾝｸﾞ
X4: （単位：台、％、千円 Unit：No. of Vehicles, %, Thousand Yen）
B5: 2022年 順位 | C5: 会場名 Site Name | E5: 出品台数 No. of Consigned Vehicles | N5: 成約台数 No. of Contracted Vehicles | Q5: 成約率 Contract Completion Rate | T5: 1台当たり 平均成約金額 Average Price per Contracted Vehicle | U5: 1開催平均出品台数 Average No. of Consigned Vehicles per Auction | X5: 2021年 順位
B6: 2022 Ranking | E6: 2022 | H6: 2021 | K6: 増減率 YoY Changes | X6: 2021 Ranking
B7: 1 | C7: USS東京 USS Tokyo | F7: 699,038 | I7: 654,651 | L7: 6.8 | O7: 473,033 | R7: 67.7 | T7: 1,507 | V7: 14,563 | X7: 1
B8: 2 | C8: USS名古屋 USS Nagoya | F8: 450,416 | I8: 458,773 | L8: ▲ 1.8 | O8: 270,433 | R8: 60.0 | T8: 1,675 | V8: 9,192 | X8: 2
B9: 3 | C9: HAA神戸 HAA Kobe | F9: 256,140 | I9: 218,832 | L9: 17.0 | O9: 160,159 | R9: 62.5 | T9: 1,010 | V9: 5,227 | X9: 4
B10: 4 | C10: USS九州 USS Kyushu | F10: 216,840 | I10: 198,628 | L10: 9.2 | O10: 144,680 | R10: 66.7 | T10: 873 | V10: 4,425 | X10: 6
B11: 5 | C11: JU岐阜 JU Gifu | F11: 216,461 | I11: 220,760 | L11: ▲ 1.9 | O11: 100,774 | R11: 46.6 | T11: 523 | V11: 4,418 | X11: 3
B12: 6 | C12: MIRIVE埼玉 MIRIVE Saitama | F12: 206,018 | I12: 179,397 | L12: 14.8 | O12: 155,226 | R12: 75.3 | T12: 440 | V12: 4,120 | X12: 9
B13: 7 | C13: USS横浜 USS Yokohama | F13: 191,992 | I13: 180,956 | L13: 6.1 | O13: 127,772 | R13: 66.6 | T13: 973 | V13: 3,918 | X13: 8
B14: 8 | C14: USS大阪 USS Osaka | F14: 189,164 | I14: 204,410 | L14: ▲ 7.5 | O14: 111,156 | R14: 58.8 | T14: 813 | V14: 3,860 | X14: 5
B15: 9 | C15: アライバントラ Arai Vans & Trucks | F15: 182,151 | I15: 196,276 | L15: ▲ 7.2 | O15: 119,599 | R15: 65.7 | T15: 949 | V15: 3,795 | X15: 7
B16: 10 | C16: CAA中部 CAA Chubu | F16: 175,605 | I16: 174,111 | L16: 0.9 | O16: 130,871 | R16: 74.5 | T16: 827 | V16: 3,658 | X16: 10

Sheet Ⅱ-1-(6)_地域別出品台数ﾗﾝｷﾝｸﾞ
X4: （単位：台、％ Unit：No. of Vehicles, %）
B5: 北海道地区 Hokkaido | J5: 東北地区 Tohoku | R5: 関東・甲信越地区 Kanto・Koshinetsu
B6: 出品台数 No. of Consigned Vehicles…………………………… | H6: 258,892 | J6: 出品台数 No. of Consigned Vehicles…………………………… | P6: 302,135 | R6: 出品台数 No. of Consigned Vehicles…………………………… | X6: 2,545,229
B7: 出品シェア No. of Consigned Vehicles Share………………… | H7: 3.7 | J7: 出品シェア No. of Consigned Vehicles Share………………… | P7: 4.3 | R7: 出品シェア No. of Consigned Vehicles Share………………… | X7: 36.6
B8: 順位 Ranking | C8: 会場名 Site Name | E8: 出品台数 No. of Consigned Vehicles | H8: シェア Share in the Ａrea | J8: 順位 Ranking | K8: 会場名 Site Name | M8: 出品台数 No. of Consigned Vehicles | P8: シェア Share in the Ａrea | R8: 順位 Ranking | S8: 会場名 Site Name | U8: 出品台数 No. of Consigned Vehicles | X8: シェア Share in the Ａrea
B9: 1 | C9: USS札幌 USS Sapporo | F9: 142,763 | H9: 55.1 | J9: 1 | K9: JU宮城 JU Miyagi | N9: 67,904 | P9: 22.5 | R9: 1 | S9: USS東京 USS Tokyo | V9: 699,038 | X9: 27.5
B10: 2 | C10: JU札幌 JU Sapporo | F10: 36,657 | H10: 14.2 | J10: 2 | K10: USS東北 USS Tohoku | N10: 57,481 | P10: 19.0 | R10: 2 | S10: MIRIVE埼玉 MIRIVE Saitama | V10: 206,018 | X10: 8.1
B11: 3 | C11: TAA北海道 TAA Hokkaido | F11: 34,382 | H11: 13.3 | J11: 3 | K11: TAA東北 TAA Tohoku | N11: 56,069 | P11: 18.6 | R11: 3 | S11: USS横浜 USS Yokohama | V11: 191,992 | X11: 7.5
C12: USSグループ計 USS Group | F12: 142,763 | H12: 55.1 | K12: USSグループ計 USS Group | N12: 57,481 | P12: 19.0 | S12: USSグループ計 USS Group | V12: 1,108,917 | X12: 43.6
B14: 中部地区 Chubu | J14: 近畿地区 Kinki | R14: 中国・四国地区 Chugoku・Shikoku
B15: 出品台数 No. of Consigned Vehicles…………………………… | H15: 1,631,909 | J15: 出品台数 No. of Consigned Vehicles…………………………… | P15: 1,084,338 | R15: 出品台数 No. of Consigned Vehicles…………………………… | X15: 408,602
B16: 出品シェア No. of Consigned Vehicles Share………………… | H16: 23.5 | J16: 出品シェア No. of Consigned Vehicles Share………………… | P16: 15.6 | R16: 出品シェア No. of Consigned Vehicles Share………………… | X16: 5.9
B17: 順位 Ranking | C17: 会場名 Site Name | E17: 出品台数 No. of Consigned Vehicles | H17: シェア Share in the Ａrea | J17: 順位 Ranking | K17: 会場名 Site Name | M17: 出品台数 No. of Consigned Vehicles | P17: シェア Share in the Ａrea | R17: 順位 Ranking | S17: 会場名 Site Name | U17: 出品台数 No. of Consigned Vehicles | X17: シェア Share in the Ａrea
B18: 1 | C18: USS名古屋 USS Nagoya | F18: 450,416 | H18: 27.6 | J18: 1 | K18: HAA神戸 HAA Kobe | N18: 256,140 | P18: 23.6 | R18: 1 | S18: LAA岡山 LAA Okayama | V18: 85,607 | X18: 21.0
B19: 2 | C19: JU岐阜 JU Gifu | F19: 216,461 | H19: 13.3 | J19: 2 | K19: USS大阪 USS Osaka | N19: 189,164 | P19: 17.4 | R19: 2 | S19: TAA広島 TAA Hiroshima | V19: 66,334 | X19: 16.2
B20: 3 | C20: CAA中部 CAA Chubu | F20: 175,605 | H20: 10.8 | J20: 3 | K20: MIRIVE大阪 MIRIVE Osaka | N20: 110,006 | P20: 10.1 | R20: 3 | S20: USS岡山 USS Okayama | V20: 65,195 | X20: 16.0
C21: USSグループ計 USS Group | F21: 668,696 | H21: 41.0 | K21: USSグループ計 USS Group | N21: 536,599 | P21: 49.5 | S21: USSグループ計 USS Group | V21: 65,195 | X21: 16.0
B23: 九州・沖縄地区 Kyushu・Okinawa
B24: 出品台数 No. of Consigned Vehicles…………………………… | H24: 684,401
B25: 出品シェア No. of Consigned Vehicles Share………………… | H25: 9.8
B26: 順位 Ranking | C26: 会場名 Site Name | E26: 出品台数 No. of Consigned Vehicles | H26: シェア Share in the Ａrea
B27: 1 | C27: USS九州 USS Kyushu | F27: 216,840 | H27: 31.7
B28: 2 | C28: TAA九州 TAA Kyushu | F28: 94,340 | H28: 13.8
B29: 3 | C29: KCAA福岡 KCAA Fukuoka | F29: 69,856 | H29: 10.2
C30: USSグループ計 USS Group | F30: 254,400 | H30: 37.2
B32: (出所：(株)ユーストカー) (Source: USEDCAR Co., Ltd.)

Sheet Ⅱ-1-(7)_二輪車業界指標
AB5: （単位：千台、％ Unit：No.of Thousand Motorcycles, %）
E6: 2012 | G6: 2013 | I6: 2014 | K6: 2015 | M6: 2016 | O6: 2017 | Q6: 2018 | S6: 2019 | U6: 2020 | W6: 2021 | Y6: 2022 | AA6: 過去10年 平均増減率
AA7: Avg YoY Change (10 year period)
B8: 二輪車販売台数 No. of Motorcycles for Sale | E8: 442 | G8: 460 | I8: 449 | K8: 406 | M8: 372 | O8: 383 | Q8: 369 | S8: 362 | U8: 365 | W8: 415 | Y8: 405 | AA8: ▲ 0.9
B9: (増減率 YoY Changes) | E9: (▲ 0.6) | G9: (4.1) | I9: (▲ 2.4) | K9: (▲ 9.6) | M9: (▲ 8.3) | O9: (2.9) | Q9: (▲ 3.8) | S9: (▲ 1.8) | U9: (1.0) | W9: (13.7) | Y9: (▲ 2.6) | AA9: -
B10: (出所：(一社)日本自動車工業会、(一社)全国軽自動車協会連合会)
B11: (Source: Japan Automobile Manufacturers Association, Japan Light Motor Vehicle and Motorcycle Association)
AB23: （単位：千台、％ Unit：No.of Thousand Motorcycles, %）
E24: 2012 | G24: 2013 | I24: 2014 | K24: 2015 | M24: 2016 | O24: 2017 | Q24: 2018 | S24: 2019 | U24: 2020 | W24: 2021 | Y24: 2022 | AA24: 過去10年 平均増減率
AA25: Avg YoY Change (10 year period)
B26: グループ名 | E26: 台数 | F26: シェア | G26: 台数 | H26: シェア | I26: 台数 | J26: シェア | K26: 台数 | L26: シェア | M26: 台数 | N26: シェア | O26: 台数 | P26: シェア | Q26: 台数 | R26: シェア | S26: 台数 | T26: シェア | U26: 台数 | V26: シェア | W26: 台数 | X26: シェア | Y26: 台数 | Z26: シェア | AA26: 台数 | AB26: シェア
B27: Group Name | E27: Vehicles | F27: Share | G27: Vehicles | H27: Share | I27: Vehicles | J27: Share | K27: Vehicles | L27: Share | M27: Vehicles | N27: Share | O27: Vehicles | P27: Share | Q27: Vehicles | R27: Share | S27: Vehicles | T27: Share | U27: Vehicles | V27: Share | W27: Vehicles | X27: Share | Y27: Vehicles | Z27: Share | AA27: Vehicles | AB27: Share
B28: JBA | E28: 88 | F28: 20.5 | G28: 103 | H28: 24.3 | I28: 102 | J28: 23.4 | K28: 115 | L28: 25.6 | M28: 105 | N28: 23.7 | O28: 108 | P28: 24.2 | Q28: 118 | R28: 26.2 | S28: 113 | T28: 26.7 | U28: 117 | V28: 29.8 | W28: 122 | X28: 31.2 | Y28: 133 | Z28: 33.9 | AA28: 4.2 | AB28: 1.3p
B29: その他 Other | E29: 343 | F29: 79.5 | G29: 322 | H29: 75.7 | I29: 335 | J29: 76.6 | K29: 334 | L29: 74.4 | M29: 341 | N29: 76.3 | O29: 340 | P29: 75.8 | Q29: 332 | R29: 73.8 | S29: 312 | T29: 73.3 | U29: 277 | V29: 70.2 | W29: 270 | X29: 68.8 | Y29: 259 | Z29: 66.1 | AA29: ▲ 2.8 | AB29: ▲1.3p
B30: 業界合計 Industry Total | E30: 431 | F30: 100.0 | G30: 425 | H30: 100.0 | I30: 437 | J30: 100.0 | K30: 449 | L30: 100.0 | M30: 446 | N30: 100.0 | O30: 448 | P30: 100.0 | Q30: 450 | R30: 100.0 | S30: 426 | T30: 100.0 | U30: 395 | V30: 100.0 | W30: 393 | X30: 100.0 | Y30: 392 | Z30: 100.0 | AA30: ▲ 0.9 | AB30: -
B31: (出所：(株)二輪車新聞社)
B32: (Source: Nirinsha Shimbunsha Co., Ltd.)

Sheet Ⅱ-2-(1)_会場別AA実績
M3: （単位：回、台、％ Unit: No. of Auctions, No. of Vehicles, %）
D4: 開催数 No. of Auctions | F4: 出品台数 No. of Consigned Vehicles | I4: 成約台数 No. of Contracted Vehicles | L4: 成約率 Contract Completion Rate
B5: 会場名 | C5: Site Name | D5: 2023.3 | E5: 2022.3 | F5: 2023.3 | G5: 2022.3 | H5: 増減率 YoY Changes | I5: 2023.3 | J5: 2022.3 | K5: 増減率 YoY Changes | L5: 2023.3 | M5: 2022.3
B6: 東京 | C6: Tokyo | D6: 48 | E6: 49 | F6: 721,989 | G6: 666,861 | H6: 8.3 | I6: 471,005 | J6: 459,229 | K6: 2.6 | L6: 65.2 | M6: 68.9
B7: 名古屋 | C7: Nagoya | D7: 49 | E7: 49 | F7: 470,883 | G7: 453,432 | H7: 3.8 | I7: 272,258 | J7: 266,162 | K7: 2.3 | L7: 57.8 | M7: 58.7
B8: ＨＡＡ神戸 | C8: HAA Kobe | D8: 49 | E8: 49 | F8: 276,221 | G8: 224,703 | H8: 22.9 | I8: 163,546 | J8: 139,302 | K8: 17.4 | L8: 59.2 | M8: 62.0
B9: 九州 | C9: Kyushu | D9: 49 | E9: 49 | F9: 221,247 | G9: 201,249 | H9: 9.9 | I9: 144,109 | J9: 132,213 | K9: 9.0 | L9: 65.1 | M9: 65.7
B10: 横浜 | C10: Yokohama | D10: 49 | E10: 49 | F10: 207,209 | G10: 178,895 | H10: 15.8 | I10: 133,862 | J10: 121,518 | K10: 10.2 | L10: 64.6 | M10: 67.9
B11: 大阪 | C11: Osaka | D11: 49 | E11: 49 | F11: 196,760 | G11: 196,185 | H11: 0.3 | I11: 112,127 | J11: 113,646 | K11: ▲ 1.3 | L11: 57.0 | M11: 57.9
B12: 札幌 | C12: Sapporo | D12: 49 | E12: 48 | F12: 151,785 | G12: 130,874 | H12: 16.0 | I12: 103,695 | J12: 93,079 | K12: 11.4 | L12: 68.3 | M12: 71.1
B13: 静岡 | C13: Shizuoka | D13: 49 | E13: 49 | F13: 102,090 | G13: 108,780 | H13: ▲ 6.2 | I13: 59,287 | J13: 67,204 | K13: ▲ 11.8 | L13: 58.1 | M13: 61.8
B14: Ｒ－名古屋 | C14: R-Nagoya | D14: 49 | E14: 49 | F14: 99,651 | G14: 100,577 | H14: ▲ 0.9 | I14: 82,944 | J14: 86,660 | K14: ▲ 4.3 | L14: 83.2 | M14: 86.2
B15: 神戸 | C15: Kobe | D15: 49 | E15: 48 | F15: 93,351 | G15: 81,851 | H15: 14.0 | I15: 53,650 | J15: 48,244 | K15: 11.2 | L15: 57.5 | M15: 58.9
B16: ＪＡＡ | C16: JAA | D16: 49 | E16: 48 | F16: 73,502 | G16: 72,381 | H16: 1.5 | I16: 33,197 | J16: 38,960 | K16: ▲ 14.8 | L16: 45.2 | M16: 53.8
B17: 岡山 | C17: Okayama | D17: 49 | E17: 49 | F17: 70,189 | G17: 64,490 | H17: 8.8 | I17: 53,465 | J17: 50,556 | K17: 5.8 | L17: 76.2 | M17: 78.4
B18: 東北 | C18: Tohoku | D18: 49 | E18: 48 | F18: 60,111 | G18: 52,666 | H18: 14.1 | I18: 45,904 | J18: 42,371 | K18: 8.3 | L18: 76.4 | M18: 80.5
B19: 群馬 | C19: Gunma | D19: 49 | E19: 49 | F19: 55,631 | G19: 51,384 | H19: 8.3 | I19: 36,187 | J19: 35,841 | K19: 1.0 | L19: 65.0 | M19: 69.8
B20: 埼玉 | C20: Saitama | D20: 49 | E20: 49 | F20: 49,229 | G20: 46,379 | H20: 6.1 | I20: 30,000 | J20: 28,565 | K20: 5.0 | L20: 60.9 | M20: 61.6
B21: 新潟 | C21: Niigata | D21: 49 | E21: 48 | F21: 48,634 | G21: 48,081 | H21: 1.2 | I21: 28,621 | J21: 28,413 | K21: 0.7 | L21: 58.8 | M21: 59.1
B22: 福岡 | C22: Fukuoka | D22: 49 | E22: 48 | F22: 40,416 | G22: 35,007 | H22: 15.5 | I22: 25,455 | J22: 22,476 | K22: 13.3 | L22: 63.0 | M22: 64.2
B23: 北陸 | C23: Hokuriku | D23: 49 | E23: 49 | F23: 19,700 | G23: 17,874 | H23: 10.2 | I23: 14,676 | J23: 12,863 | K23: 14.1 | L23: 74.5 | M23: 72.0
B24: 総合計 | C24: Total | D24: 881 | E24: 876 | F24: 2,958,598 | G24: 2,731,669 | H24: 8.3 | I24: 1,863,988 | J24: 1,787,302 | K24: 4.3 | L24: 63.0 | M24: 65.4
B26: 総合計のうち低額車取扱台数 Lower-priced vehicles Auction Data | F26: 428,381 | G26: 423,500 | H26: 1.2 | I26: 381,568 | J26: 377,018 | K26: 1.2 | L26: 89.1 | M26: 89.0

Sheet Ⅱ-2-(2)_AA実績月次推移
R4: (単位：台、％ Unit: No. of Vehicles, %）
D5: 4月 Apr. | E5: 5月 May | F5: 6月 Jun. | G5: 7月 Jul. | H5: 8月 Aug. | I5: 9月 Sep. | J5: 上期 First Half | K5: 10月 Oct. | L5: 11月 Nov. | M5: 12月 Dec. | N5: 1月 Jan. | O5: 2月 Feb. | P5: 3月 Mar. | Q5: 下期 Second Half | R5: 年度 Fiscal Year
B6: 出品台数 No. of Consigned Vehicles | C6: 2021.3 | D6: 255,293 | E6: 180,384 | F6: 196,014 | G6: 217,449 | H6: 166,982 | I6: 221,001 | J6: 1,237,123 | K6: 250,352 | L6: 228,129 | M6: 207,446 | N6: 207,691 | O6: 242,073 | P6: 288,270 | Q6: 1,423,961 | R6: 2,661,084
C7: 増減率 YoY Changes | D7: ▲ 3.8 | E7: ▲ 27.4 | F7: ▲ 23.9 | G7: ▲ 13.0 | H7: ▲ 20.6 | I7: ▲ 3.6 | J7: ▲ 15.3 | K7: ▲ 1.0 | L7: ▲ 11.3 | M7: 5.6 | N7: ▲ 1.8 | O7: ▲ 3.9 | P7: ▲ 1.7 | Q7: ▲ 2.7 | R7: ▲ 9.0
C8: 2022.3 | D8: 249,661 | E8: 226,767 | F8: 237,143 | G8: 248,298 | H8: 167,498 | I8: 232,175 | J8: 1,361,542 | K8: 225,057 | L8: 211,642 | M8: 200,338 | N8: 194,069 | O8: 233,948 | P8: 305,073 | Q8: 1,370,127 | R8: 2,731,669
C9: 増減率 YoY Changes | D9: ▲ 2.2 | E9: 25.7 | F9: 21.0 | G9: 14.2 | H9: 0.3 | I9: 5.1 | J9: 10.1 | K9: ▲ 10.1 | L9: ▲ 7.2 | M9: ▲ 3.4 | N9: ▲ 6.6 | O9: ▲ 3.4 | P9: 5.8 | Q9: ▲ 3.8 | R9: 2.7
C10: 2023.3 | D10: 274,614 | E10: 198,401 | F10: 238,574 | G10: 223,724 | H10: 173,070 | I10: 247,861 | J10: 1,356,244 | K10: 249,529 | L10: 266,158 | M10: 229,030 | N10: 225,117 | O10: 282,743 | P10: 349,777 | Q10: 1,602,354 | R10: 2,958,598
C11: 増減率 YoY Changes | D11: 10.0 | E11: ▲ 12.5 | F11: 0.6 | G11: ▲ 9.9 | H11: 3.3 | I11: 6.8 | J11: ▲ 0.4 | K11: 10.9 | L11: 25.8 | M11: 14.3 | N11: 16.0 | O11: 20.9 | P11: 14.7 | Q11: 16.9 | R11: 8.3
B12: 成約台数 No. of Contracted Vehicles | C12: 2021.3 | D12: 119,644 | E12: 96,174 | F12: 126,384 | G12: 150,887 | H12: 118,526 | I12: 153,725 | J12: 765,340 | K12: 166,954 | L12: 145,090 | M12: 127,329 | N12: 132,226 | O12: 156,459 | P12: 187,412 | Q12: 915,470 | R12: 1,680,810
C13: 増減率 YoY Changes | D13: ▲ 23.8 | E13: ▲ 36.1 | F13: ▲ 17.5 | G13: ▲ 2.0 | H13: ▲ 10.0 | I13: 2.1 | J13: ▲ 14.7 | K13: 6.7 | L13: ▲ 3.9 | M13: 10.4 | N13: 1.2 | O13: ▲ 1.0 | P13: 14.3 | Q13: 4.6 | R13: ▲ 5.2
C14: 2022.3 | D14: 152,866 | E14: 145,088 | F14: 151,456 | G14: 156,301 | H14: 113,210 | I14: 157,678 | J14: 876,599 | K14: 153,735 | L14: 147,200 | M14: 130,978 | N14: 130,829 | O14: 155,225 | P14: 192,736 | Q14: 910,703 | R14: 1,787,302
C15: 増減率 YoY Changes | D15: 27.8 | E15: 50.9 | F15: 19.8 | G15: 3.6 | H15: ▲ 4.5 | I15: 2.6 | J15: 14.5 | K15: ▲ 7.9 | L15: 1.5 | M15: 2.9 | N15: ▲ 1.1 | O15: ▲ 0.8 | P15: 2.8 | Q15: ▲ 0.5 | R15: 6.3
C16: 2023.3 | D16: 163,077 | E16: 131,149 | F16: 160,958 | G16: 156,355 | H16: 124,811 | I16: 172,270 | J16: 908,620 | K16: 161,241 | L16: 163,985 | M16: 130,649 | N16: 134,243 | O16: 165,277 | P16: 199,973 | Q16: 955,368 | R16: 1,863,988
C17: 増減率 YoY Changes | D17: 6.7 | E17: ▲ 9.6 | F17: 6.3 | G17: 0.0 | H17: 10.2 | I17: 9.3 | J17: 3.7 | K17: 4.9 | L17: 11.4 | M17: ▲ 0.3 | N17: 2.6 | O17: 6.5 | P17: 3.8 | Q17: 4.9 | R17: 4.3
B18: 成約率 Contract Completion Rate | C18: 2021.3 | D18: 46.9 | E18: 53.3 | F18: 64.5 | G18: 69.4 | H18: 71.0 | I18: 69.6 | J18: 61.9 | K18: 66.7 | L18: 63.6 | M18: 61.4 | N18: 63.7 | O18: 64.6 | P18: 65.0 | Q18: 64.3 | R18: 63.2
C19: 2022.3 | D19: 61.2 | E19: 64.0 | F19: 63.9 | G19: 62.9 | H19: 67.6 | I19: 67.9 | J19: 64.4 | K19: 68.3 | L19: 69.6 | M19: 65.4 | N19: 67.4 | O19: 66.4 | P19: 63.2 | Q19: 66.5 | R19: 65.4
C20: 2023.3 | D20: 59.4 | E20: 66.1 | F20: 67.5 | G20: 69.9 | H20: 72.1 | I20: 69.5 | J20: 67.0 | K20: 64.6 | L20: 61.6 | M20: 57.0 | N20: 59.6 | O20: 58.5 | P20: 57.2 | Q20: 59.6 | R20: 63.0

Sheet Ⅲ-1-(1)_ｾｸﾞﾒﾝﾄの状況
Q3: （単位：百万円、％ Unit: Million Yen, %）
E4: 2013.3 | F4: 2014.3 | G4: 2015.3 | H4: 2016.3 | I4: 2017.3 | J4: 2018.3 | K4: 2019.3 | L4: 2020.3 | M4: 2021.3 | N4: 2022.3 | O4: 2023.3 | P4: 増減率 | Q4: 過去10年 平均増減率
P5: VS. Prev. year | Q5: Avg YoY Change (10 year period)
B6: オートオークション Auto Auction Business | C6: 売上高 Net Sales | E6: 46,398 | F6: 50,084 | G6: 50,981 | H6: 53,150 | I6: 53,311 | J6: 60,025 | K6: 65,141 | L6: 63,772 | M6: 61,429 | N6: 65,185 | O6: 69,594 | P6: 6.8 | Q6: 4.1
C7: 営業利益 Operating Profit | E7: 28,365 | F7: 31,130 | G7: 32,116 | H7: 33,560 | I7: 31,869 | J7: 35,131 | K7: 36,323 | L7: 35,436 | M7: 35,463 | N7: 40,217 | O7: 42,267 | P7: 5.1 | Q7: 4.1
C8: 営業利益率 Operating Margin | E8: 61.1 | F8: 62.2 | G8: 63.0 | H8: 63.1 | I8: 59.8 | J8: 58.5 | K8: 55.8 | L8: 55.6 | M8: 57.7 | N8: 61.7 | O8: 60.7 | P8: - | Q8: -
B9: 中古自動車等買取販売 Used Vehicle Sales/ Purchases Business | C9: 売上高 Net Sales | E9: 11,545 | F9: 11,622 | G9: 10,084 | H9: 10,097 | I9: 9,373 | J9: 9,827 | K9: 9,701 | L9: 9,099 | M9: 8,646 | N9: 9,300 | O9: 10,391 | P9: 11.7 | Q9: ▲ 1.0
C10: 営業利益 Operating Profit | E10: 588 | F10: 724 | G10: 464 | H10: 485 | I10: 202 | J10: 171 | K10: 116 | L10: 103 | M10: 271 | N10: 136 | O10: 130 | P10: ▲ 4.6 | Q10: ▲ 14.0
C11: 営業利益率 Operating Margin | E11: 5.1 | F11: 6.2 | G11: 4.6 | H11: 4.8 | I11: 2.2 | J11: 1.7 | K11: 1.2 | L11: 1.1 | M11: 3.1 | N11: 1.5 | O11: 1.3 | P11: - | Q11: -
B12: リサイクル Recycling Business | C12: 売上高 Net Sales | E12: 4,019 | F12: 4,821 | G12: 5,027 | H12: 4,670 | I12: 4,512 | J12: 5,243 | K12: 4,913 | L12: 5,163 | M12: 4,831 | N12: 7,241 | O12: 8,985 | P12: 24.1 | Q12: 8.4
C13: 営業利益 Operating Profit | E13: 103 | F13: 506 | G13: 462 | H13: 171 | I13: 114 | J13: 604 | K13: 481 | L13: 309 | M13: 376 | N13: 1,142 | O13: 1,333 | P13: 16.7 | Q13: 29.1
C14: 営業利益率 Operating Margin | E14: 2.6 | F14: 10.5 | G14: 9.2 | H14: 3.7 | I14: 2.5 | J14: 11.5 | K14: 9.8 | L14: 6.0 | M14: 7.8 | N14: 15.8 | O14: 14.8 | P14: - | Q14: -
B15: その他 Other Business | C15: 売上高 Net Sales | E15: 1,774 | F15: 2,033 | G15: 2,077 | H15: 1,250 | I15: 493 | J15: 583 | K15: 645 | L15: 577 | M15: 389 | N15: 85 | O15: 99 | P15: 16.3 | Q15: ▲ 25.0
C16: 営業利益または営業損失(▲) Operating profit (loss) | E16: 119 | F16: 185 | G16: 213 | H16: 65 | I16: ▲ 3 | J16: 60 | K16: 102 | L16: 59 | M16: 23 | N16: 58 | O16: 27 | P16: ▲ 52.1 | Q16: ▲ 13.6
C17: 営業利益率 Operating Margin | E17: 6.7 | F17: 9.1 | G17: 10.3 | H17: 5.3 | I17: ▲ 0.7 | J17: 10.4 | K17: 15.9 | L17: 10.3 | M17: 6.1 | N17: 68.0 | O17: 28.0 | P17: - | Q17: -
B18: 消去または全社 Elimination of Inter- segment Transactions | C18: 売上高 Net Sales | E18: ▲ 492 | F18: ▲ 612 | G18: ▲ 704 | H18: ▲ 560 | I18: ▲ 511 | J18: ▲ 526 | K18: ▲ 493 | L18: ▲ 470 | M18: ▲ 422 | N18: ▲ 330 | O18: ▲ 292 | P18: - | Q18: -
C19: 営業利益 Operating Profit | E19: 127 | F19: 133 | G19: 155 | H19: 208 | I19: 213 | J19: 103 | K19: 99 | L19: 100 | M19: 91 | N19: 19 | O19: 18 | P19: - | Q19: -
C20: 営業利益率 Operating Margin | E20: - | F20: - | G20: - | H20: - | I20: - | J20: - | K20: - | L20: - | M20: - | N20: - | O20: - | P20: - | Q20: -
B21: 連結 Consolidated Total | C21: 売上高 Net Sales | E21: 63,243 | F21: 67,949 | G21: 67,466 | H21: 68,607 | I21: 67,179 | J21: 75,153 | K21: 79,908 | L21: 78,143 | M21: 74,874 | N21: 81,482 | O21: 88,778 | P21: 9.0 | Q21: 3.4
C22: 営業利益 Operating Profit | E22: 29,304 | F22: 32,680 | G22: 33,411 | H22: 34,491 | I22: 32,396 | J22: 36,071 | K22: 37,123 | L22: 36,009 | M22: 36,227 | N22: 41,574 | O22: 43,778 | P22: 5.3 | Q22: 4.1
C23: 営業利益率 Operating Margin | E23: 46.3 | F23: 48.1 | G23: 49.5 | H23: 50.3 | I23: 48.2 | J23: 48.0 | K23: 46.5 | L23: 46.1 | M23: 48.4 | N23: 51.0 | O23: 49.3 | P23: - | Q23: -

Sheet Ⅲ-1-(2)_AAｾｸﾞﾒﾝﾄ売上推移
P4: （単位：百万円、％ Unit: Million Yen, %）
D5: 2013.3 | E5: 2014.3 | F5: 2015.3 | G5: 2016.3 | H5: 2017.3 | I5: 2018.3 | J5: 2019.3 | K5: 2020.3 | L5: 2021.3 | M5: 2022.3 | N5: 2023.3 | O5: 増減率 | P5: 過去10年 平均増減率
O6: VS. Prev. year | P6: Avg YoY Change (10 year period)
B7: 売上高 Net Sales | D7: 46,398 | E7: 50,084 | F7: 50,981 | G7: 53,150 | H7: 53,311 | I7: 60,025 | J7: 65,141 | K7: 63,772 | L7: 61,429 | M7: 65,185 | N7: 69,594 | O7: 6.8 | P7: 4.1
B8: 営業利益 Operating Profit | D8: 28,365 | E8: 31,130 | F8: 32,116 | G8: 33,560 | H8: 31,869 | I8: 35,131 | J8: 36,323 | K8: 35,436 | L8: 35,463 | M8: 40,217 | N8: 42,267 | O8: 5.1 | P8: 4.1
B9: 営業利益率 Operating Margin | D9: 61.1 | E9: 62.2 | F9: 63.0 | G9: 63.1 | H9: 59.8 | I9: 58.5 | J9: 55.8 | K9: 55.6 | L9: 57.7 | M9: 61.7 | N9: 60.7 | O9: - | P9: -
P11: （単位：台、％ Unit: No. of Vehicles, %）
D12: 2013.3 | E12: 2014.3 | F12: 2015.3 | G12: 2016.3 | H12: 2017.3 | I12: 2018.3 | J12: 2019.3 | K12: 2020.3 | L12: 2021.3 | M12: 2022.3 | N12: 2023.3 | O12: 増減率 | P12: 過去10年 平均増減率
O13: VS. Prev. year | P13: Avg YoY Change (10 year period)
B14: 出品台数 No. of Consigned Vehicles | D14: 2,199,797 | E14: 2,305,189 | F14: 2,353,141 | G14: 2,394,009 | H14: 2,353,536 | I14: 2,700,010 | J14: 2,930,127 | K14: 2,924,052 | L14: 2,661,084 | M14: 2,731,669 | N14: 2,958,598 | O14: 8.3 | P14: 3.0
B15: 成約台数 No. of Contracted Vehicles | D15: 1,405,072 | E15: 1,541,007 | F15: 1,545,233 | G15: 1,562,399 | H15: 1,508,843 | I15: 1,709,998 | J15: 1,825,991 | K15: 1,772,443 | L15: 1,680,810 | M15: 1,787,302 | N15: 1,863,988 | O15: 4.3 | P15: 2.9
B16: 成約率 Contract Completion Rate | D16: 63.9 | E16: 66.8 | F16: 65.7 | G16: 65.3 | H16: 64.1 | I16: 63.3 | J16: 62.3 | K16: 60.6 | L16: 63.2 | M16: 65.4 | N16: 63.0 | O16: - | P16: -

Sheet Ⅲ-1-(3)_AAｾｸﾞﾒﾝﾄ売上内訳
P4: （単位：百万円、％ Unit: Million Yen, %）
D5: 2013.3 | E5: 2014.3 | F5: 2015.3 | G5: 2016.3 | H5: 2017.3 | I5: 2018.3 | J5: 2019.3 | K5: 2020.3 | L5: 2021.3 | M5: 2022.3 | N5: 2023.3 | O5: 増減率 | P5: 過去10年 平均増減率
O6: VS. Prev. year | P6: Avg YoY Change (10 year period)
B7: 出品手数料 Consignment Fees | D7: 11,817 | E7: 12,241 | F7: 12,636 | G7: 12,780 | H7: 12,432 | I7: 14,153 | J7: 15,269 | K7: 15,047 | L7: 14,151 | M7: 15,198 | N7: 16,570 | O7: 9.0 | P7: 3.4
B8: 成約手数料 Contract Completion Fees | D8: 10,873 | E8: 11,958 | F8: 12,083 | G8: 12,335 | H8: 12,073 | I8: 13,858 | J8: 14,898 | K8: 14,499 | L8: 14,088 | M8: 15,088 | N8: 15,721 | O8: 4.2 | P8: 3.8
B9: 落札手数料 Successful Bid Fees | D9: 15,626 | E9: 17,190 | F9: 17,096 | G9: 18,168 | H9: 17,986 | I9: 20,192 | J9: 22,313 | K9: 21,758 | L9: 21,573 | M9: 23,076 | N9: 23,985 | O9: 3.9 | P9: 4.4
B10: バイクオークション手数料 Motorcycle Auction Fees | D10: - | E10: - | F10: - | G10: 183 | H10: 704 | I10: 730 | J10: 784 | K10: 798 | L10: 863 | M10: 888 | N10: 1,014 | O10: 14.1 | P10: 6.3
B11: 商品売上高 Net Sales of Goods | D11: 624 | E11: 905 | F11: 1,166 | G11: 1,479 | H11: 1,494 | I11: 1,907 | J11: 2,408 | K11: 2,232 | L11: 1,456 | M11: 1,491 | N11: 2,659 | O11: 78.2 | P11: 15.6
B12: その他の営業収入 Other Operating Revenue | D12: 6,967 | E12: 7,184 | F12: 7,299 | G12: 7,647 | H12: 8,120 | I12: 8,679 | J12: 9,009 | K12: 9,013 | L12: 8,914 | M12: 9,113 | N12: 9,354 | O12: 2.6 | P12: 3.0
B13: 売上高 Net Sales | D13: 45,909 | E13: 49,479 | F13: 50,281 | G13: 52,594 | H13: 52,811 | I13: 59,521 | J13: 64,684 | K13: 63,350 | L13: 61,048 | M13: 64,858 | N13: 69,304 | O13: 6.9 | P13: 4.2
P26: （単位：円、％ Unit: Yen, %）
D27: 2013.3 | E27: 2014.3 | F27: 2015.3 | G27: 2016.3 | H27: 2017.3 | I27: 2018.3 | J27: 2019.3 | K27: 2020.3 | L27: 2021.3 | M27: 2022.3 | N27: 2023.3 | O27: 増減率 | P27: 過去10年 平均増減率
O28: VS. Prev. year | P28: Avg YoY Change (10 year period)
B29: 出品手数料 Consignment Fees | D29: 5,407 | E29: 5,344 | F29: 5,405 | G29: 5,381 | H29: 5,326 | I29: 5,278 | J29: 5,243 | K29: 5,178 | L29: 5,348 | M29: 5,593 | N29: 5,629 | O29: 0.6 | P29: 0.4
B30: 成約手数料 Contract Completion Fees | D30: 7,802 | E30: 7,821 | F30: 7,882 | G30: 7,962 | H30: 8,072 | I30: 8,163 | J30: 8,213 | K30: 8,236 | L30: 8,436 | M30: 8,491 | N30: 8,483 | O30: ▲ 0.1 | P30: 0.8
B31: 落札手数料 Successful Bid Fees | D31: 11,124 | E31: 11,157 | F31: 11,067 | G31: 11,630 | H31: 11,922 | I31: 11,813 | J31: 12,225 | K31: 12,280 | L31: 12,841 | M31: 12,924 | N31: 12,880 | O31: ▲ 0.3 | P31: 1.5
P34: （単位：円、％ Unit: Yen, %）
D35: 2013.3 | E35: 2014.3 | F35: 2015.3 | G35: 2016.3 | H35: 2017.3 | I35: 2018.3 | J35: 2019.3 | K35: 2020.3 | L35: 2021.3 | M35: 2022.3 | N35: 2023.3 | O35: 増減率 | P35: 過去10年 平均増減率
O36: VS. Prev. year | P36: Avg YoY Change (10 year period)
B37: 出品手数料 Consignment Fees | D37: 6,035 | E37: 5,985 | F37: 6,102 | G37: 6,163 | H37: 6,118 | I37: 6,041 | J37: 6,032 | K37: 5,968 | L37: 6,058 | M37: 6,177 | N37: 6,200 | O37: 0.4 | P37: 0.3
B38: 成約手数料 Contract Completion Fees | D38: 7,846 | E38: 7,870 | F38: 7,927 | G38: 8,057 | H38: 8,190 | I38: 8,281 | J38: 8,395 | K38: 8,355 | L38: 8,445 | M38: 8,473 | N38: 8,517 | O38: 0.5 | P38: 0.8
B39: 落札手数料 Successful Bid Fees | D39: 11,634 | E39: 11,752 | F39: 11,799 | G39: 12,627 | H39: 13,061 | I39: 12,974 | J39: 13,556 | K39: 13,708 | L39: 14,094 | M39: 13,920 | N39: 13,930 | O39: 0.1 | P39: 1.8

Sheet ＡＡ(手数料内訳) 2 (hidden)
P4: （単位：百万円、％ Unit: Million Yen, %） | S4: <データ入力用＞ | T4: ※外部数値
D5: =T5 -> 2013.3 | E5: =U5 -> 2014.3 | F5: 2015.3 | G5: 2016.3 | H5: 2017.3 | I5: 2018.3 | J5: 2019.3 | K5: 2020.3 | L5: 2021.3 | M5: 2022.3 | N5: 2023.3 | O5: 増減率 | P5: 過去10年 平均増減率 | T5: 2013.3 | U5: 2014.3 | V5: 2015.3 | W5: 2016.3 | X5: 2017.3 | Y5: 2018.3 | Z5: 2019.3 | AA5: 2020.3 | AB5: 2021.3 | AC5: 2022.3 | AD5: 2023.3 | AE5: 増減率 | AF5: 過去10年 平均増減率
O6: VS. Prev. year | P6: Avg YoY Change (10 year period) | AE6: VS. Prev. year | AF6: Avg YoY Change (10 year period)
B7: 出品手数料 Consignment Fees | D7: =IF(OR(T7="-",T7=""),"-",ROUNDDOWN(T7,-6)/1000000) -> 11,817 | E7: 12,241 | F7: 12,636 | G7: 12,780 | H7: 12,432 | I7: 14,153 | J7: 15,269 | K7: 15,047 | L7: 14,151 | M7: 15,198 | N7: 16,570 | O7: =AE7 -> 9.0 | P7: 3.4 | S7: 出品手数料 Consignment Fee | T7: 11,817,469,240 | U7: 12,241,051,678 | V7: 12,636,361,069 | W7: 12,780,230,976 | X7: 12,432,646,322 | Y7: 14,153,520,995 | Z7: 15,269,486,973 | AA7: 15,047,717,814 | AB7: 14,151,436,900 | AC7: 15,198,700,650 | AD7: 16,570,553,000 | AE7: =IF(ISERROR((AD7/AC7-1)*100),"-",(AD7/AC7-1)*100) -> 9.0 | AF7: =IF(ISERROR(((AD7/T7)^(1/10)-1)*100),"-",((AD7/T7)^(1/10)-1)*100) -> 3.4
B8: 成約手数料 Contract Completion Fees | D8: 10,873 | E8: 11,958 | F8: 12,083 | G8: 12,335 | H8: 12,073 | I8: 13,858 | J8: 14,898 | K8: 14,499 | L8: 14,088 | M8: 15,088 | N8: 15,721 | O8: 4.2 | P8: 3.8 | S8: 成約手数料 Contract Completion Fee | T8: 10,873,681,259 | U8: 11,958,110,477 | V8: 12,083,502,732 | W8: 12,335,763,630 | X8: 12,073,176,442 | Y8: 13,858,620,267 | Z8: 14,898,209,479 | AA8: 14,499,700,950 | AB8: 14,088,044,900 | AC8: 15,088,679,800 | AD8: 15,721,015,950 | AE8: 4.2 | AF8: =IF(ISERROR(((AD8/T8)^(1/10)-1)*100),"-",((AD8/T8)^(1/10)-1)*100) -> 3.8
B9: 落札手数料 Successful Bid Fees | D9: 15,626 | E9: 17,190 | F9: 17,096 | G9: 18,168 | H9: 17,986 | I9: 20,192 | J9: 22,313 | K9: 21,758 | L9: 21,573 | M9: 23,076 | N9: 23,985 | O9: 3.9 | P9: 4.4 | S9: 落札手数料 Successful Bidding Fee | T9: 15,626,877,800 | U9: 17,190,074,200 | V9: 17,096,681,406 | W9: 18,168,281,000 | X9: 17,986,120,770 | Y9: 20,192,045,814 | Z9: 22,313,768,400 | AA9: 21,758,666,200 | AB9: 21,573,894,900 | AC9: 23,076,066,600 | AD9: 23,985,428,200 | AE9: 3.9 | AF9: =IF(ISERROR(((AD9/T9)^(1/10)-1)*100),"-",((AD9/T9)^(1/10)-1)*100) -> 4.4
B10: バイクオークション手数料 Motorcycle Auction Fees | D10: - | E10: - | F10: - | G10: 183 | H10: 704 | I10: 730 | J10: 784 | K10: 798 | L10: 863 | M10: 888 | N10: 1,014 | O10: =AE10 -> 14.1 | P10: =AF10 -> 6.3 | S10: バイクオークション手数料 Motorcycle Auction Fee | T10: - | U10: - | V10: - | W10: 183,995,500 | X10: 704,476,610 | Y10: 730,507,500 | Z10: 784,873,500 | AA10: 798,354,028 | AB10: 863,332,000 | AC10: 888,782,300 | AD10: 1,014,534,500 | AE10: =IF(ISERROR((AD10/AC10-1)*100),"-",(AD10/AC10-1)*100) -> 14.1 | AF10: =IF(ISERROR(((AD10/X10)^(1/6)-1)*100),"-",((AD10/X10)^(1/6)-1)*100) -> 6.3 | AG10: ←過去10年平均増減率は、2018年3月期から計算式で算出するが、比較年は2017年3月期とする。※10年たつまで毎年計算式を更新
B11: 商品売上高 Net Sales of Goods | D11: 624 | E11: 905 | F11: 1,166 | G11: 1,479 | H11: 1,494 | I11: 1,907 | J11: 2,408 | K11: 2,232 | L11: 1,456 | M11: 1,491 | N11: 2,659 | O11: 78.2 | P11: 15.6 | S11: 商品売上高 Net Sales of Goods | T11: 624,328,081 | U11: 905,755,905 | V11: 1,166,273,802 | W11: 1,479,307,951 | X11: 1,494,748,372 | Y11: 1,907,377,749 | Z11: 2,408,639,885 | AA11: 2,232,996,304 | AB11: 1,456,993,222 | AC11: 1,491,812,493 | AD11: 2,659,016,672 | AE11: 78.2 | AF11: =IF(ISERROR(((AD11/T11)^(1/10)-1)*100),"-",((AD11/T11)^(1/10)-1)*100) -> 15.6 | AI11: =IF(ISERROR(((AD9/AA9)^(1/3)-1)*100),"-",((AD9/AA9)^(1/3)-1)*100) 赤いところを4.5.6・・・変更していく
B12: その他の営業収入 Other Operating Revenue | D12: 6,967 | E12: 7,184 | F12: 7,299 | G12: 7,647 | H12: 8,120 | I12: 8,679 | J12: 9,009 | K12: 9,013 | L12: 8,914 | M12: 9,113 | N12: 9,354 | O12: 2.6 | P12: 3.0 | S12: その他の営業収入 Other Operating Revenue | T12: 6,967,190,308 | U12: 7,184,155,585 | V12: 7,299,000,195 | W12: 7,647,240,637 | X12: 8,120,209,483 | Y12: 8,679,135,492 | Z12: 9,009,806,437 | AA12: 9,013,545,201 | AB12: 8,914,650,111 | AC12: 9,113,992,328 | AD12: 9,354,403,060 | AE12: 2.6 | AF12: =IF(ISERROR(((AD12/T12)^(1/10)-1)*100),"-",((AD12/T12)^(1/10)-1)*100) -> 3.0
B13: 売上高 Net Sales | D13: 45,909 | E13: 49,479 | F13: 50,281 | G13: 52,594 | H13: 52,811 | I13: 59,521 | J13: 64,684 | K13: 63,350 | L13: 61,048 | M13: 64,858 | N13: 69,304 | O13: 6.9 | P13: 4.2 | S13: 売上高計 | T13: 45,909,546,688 | U13: 49,479,147,845 | V13: 50,281,819,204 | W13: 52,594,819,694 | X13: 52,811,377,999 | Y13: 59,521,207,817 | Z13: 64,684,784,674 | AA13: 63,350,980,497 | AB13: 61,048,352,033 | AC13: 64,858,034,171 | AD13: 69,304,951,382 | AE13: 6.9 | AF13: =IF(ISERROR(((AD13/T13)^(1/10)-1)*100),"-",((AD13/T13)^(1/10)-1)*100) -> 4.2
B14: ※売上内訳は、連結数値を使用しております。 * Net Sales figures are after eliminations for consolidation.
S15: <グラフ作成用＞
T16: =T5 -> 2013.3 | U16: =U5 -> 2014.3 | V16: 2015.3 | W16: 2016.3 | X16: 2017.3 | Y16: 2018.3 | Z16: 2019.3 | AA16: 2020.3 | AB16: 2021.3 | AC16: =AC5 -> 2022.3 | AD16: =AD5 -> 2023.3 | AE16: 増減率 | AF16: 10年増減率
S18: <オートオークション>
S19: 出品手数料 Consignment Fees | T19: =IF(T7="-","-",ROUNDDOWN(T7,-6)) -> 11,817 | U19: =IF(U7="-","-",ROUNDDOWN(U7,-6)) -> 12,241 | V19: 12,636 | W19: 12,780 | X19: 12,432 | Y19: 14,153 | Z19: 15,269 | AA19: 15,047 | AB19: =IF(AB7="-","-",ROUNDDOWN(AB7,-6)) -> 14,151 | AC19: 15,198 | AD19: =IF(AD7="-","-",ROUNDDOWN(AD7,-6)) -> 16,570
S20: 成約手数料 Contract Completion Fees | T20: =IF(T8="-","-",ROUNDDOWN(T8,-6)) -> 10,873 | U20: 11,958 | V20: 12,083 | W20: 12,335 | X20: 12,073 | Y20: 13,858 | Z20: 14,898 | AA20: 14,499 | AB20: 14,088 | AC20: 15,088 | AD20: 15,721
S21: 落札手数料 Successful Bid Fees | T21: =IF(T9="-","-",ROUNDDOWN(T9,-6)) -> 15,626 | U21: 17,190 | V21: 17,096 | W21: 18,168 | X21: 17,986 | Y21: 20,192 | Z21: 22,313 | AA21: 21,758 | AB21: 21,573 | AC21: 23,076 | AD21: 23,985
S22: バイクオークション手数料 Motorcycle Auction Fees | T22: - | U22: - | V22: - | W22: 183 | X22: 704 | Y22: 730 | Z22: 784 | AA22: 798 | AB22: 863 | AC22: 888 | AD22: 1,014
S23: 商品売上高 Net Sales of Goods | T23: =IF(T11="-","-",ROUNDDOWN(T11,-6)) -> 624 | U23: 905 | V23: 1,166 | W23: 1,479 | X23: 1,494 | Y23: 1,907 | Z23: 2,408 | AA23: 2,232 | AB23: 1,456 | AC23: 1,491 | AD23: 2,659
S24: その他の営業収入 Other Operating Revenue | T24: =IF(T12="-","-",ROUNDDOWN(T12,-6)) -> 6,967 | U24: 7,184 | V24: 7,299 | W24: 7,647 | X24: 8,120 | Y24: 8,679 | Z24: 9,009 | AA24: 9,013 | AB24: 8,914 | AC24: 9,113 | AD24: 9,354
S25: 売上高計 | T25: 45,909 | U25: 49,479 | V25: 50,281 | W25: 52,594 | X25: 52,811 | Y25: 59,521 | Z25: 64,684 | AA25: 63,350 | AB25: 61,048 | AC25: 64,858 | AD25: 69,304
P27: （単位：円、％ Unit: Yen, %） | S27: ＜１台当たりの手数料＞ ※1台当りの手数料は連結相殺前の数値をもとに算出しております。 | AE27: （単位：円、％） | AF27: （単位：円、％）
D28: =T28 -> 2013.3 | E28: =U28 -> 2014.3 | F28: 2015.3 | G28: 2016.3 | H28: 2017.3 | I28: 2018.3 | J28: 2019.3 | K28: 2020.3 | L28: 2021.3 | M28: 2022.3 | N28: 2023.3 | O28: 増減率 | P28: 過去10年 平均増減率 | T28: =T$5 -> 2013.3 | U28: 2014.3 | V28: 2015.3 | W28: 2016.3 | X28: 2017.3 | Y28: 2018.3 | Z28: 2019.3 | AA28: 2020.3 | AB28: 2021.3 | AC28: 2022.3 | AD28: 2023.3 | AE28: 増減率 | AF28: 過去10年 平均増減率
O29: VS. Prev. year | P29: Avg YoY Change (10 year period) | S29: 出品手数料 | T29: =ROUNDDOWN(T41/T44,0) ->  | U29: =ROUNDDOWN(U41/U44,0) ->  | V29: =ROUNDDOWN(V41/V44,0) ->  | AD29: =ROUNDDOWN(AD41/AD44,0) ->  | AE29: =(AD29/AC29-1)*100 ->  | AF29: =IF(ISERROR(((AD29/T29)^(1/10)-1)*100),"-",((AD29/T29)^(1/10)-1)*100) -> -
B30: 出品手数料 Consignment Fees | D30: =T29 ->  | E30: =U29 ->  | O30: =AE29 ->  | P30: =AF29 -> - | S30: 成約手数料 | T30: =ROUNDDOWN(T42/T45,0) ->  | U30: =ROUNDDOWN(U42/U45,0) ->  | AD30: =ROUNDDOWN(AD42/AD45,0) ->  | AE30: =(AD30/AC30-1)*100 ->  | AF30: =IF(ISERROR(((AD30/T30)^(1/10)-1)*100),"-",((AD30/T30)^(1/10)-1)*100) -> -
B31: 成約手数料 Contract Completion Fees | D31: =T30 ->  | P31: =AF30 -> - | S31: 落札手数料 | T31: =ROUNDDOWN(T43/T45,0) ->  | U31: =ROUNDDOWN(U43/U45,0) ->  | AE31: =(AD31/AC31-1)*100 ->  | AF31: =IF(ISERROR(((AD31/T31)^(1/10)-1)*100),"-",((AD31/T31)^(1/10)-1)*100) -> -
B32: 落札手数料 Successful Bid Fees | D32: =T31 ->  | P32: =AF31 -> - | S32: ＜リユース車除く＞※ | AE32: （単位：円、％） | AF32: （単位：円、％）
T33: =T$5 -> 2013.3 | U33: 2014.3 | V33: 2015.3 | W33: 2016.3 | X33: 2017.3 | Y33: 2018.3 | Z33: 2019.3 | AA33: 2020.3 | AB33: 2021.3 | AC33: 2022.3 | AD33: 2023.3 | AE33: 増減率 | AF33: 過去10年 平均増減率
S34: 出品手数料 | T34: =INT((T41-T50)/(T44-T53)) ->  | AD34: =IF(AD50="","",INT((AD41-AD50)/(AD44-AD53))) ->  | AE34: =(AD34/AC34-1)*100 ->  | AF34: =IF(ISERROR(((AD34/T34)^(1/10)-1)*100),"-",((AD34/T34)^(1/10)-1)*100) -> -
P35: （単位：円、％ Unit: Yen, %） | S35: 成約手数料 | AD35: =IF(AD51="","",INT((AD42-AD51)/(AD45-AD54))) ->  | AE35: =(AD35/AC35-1)*100 ->  | AF35: =IF(ISERROR(((AD35/T35)^(1/10)-1)*100),"-",((AD35/T35)^(1/10)-1)*100) -> -
D36: =T33 -> 2013.3 | E36: =U33 -> 2014.3 | F36: 2015.3 | G36: 2016.3 | H36: 2017.3 | I36: 2018.3 | J36: 2019.3 | K36: 2020.3 | L36: 2021.3 | M36: 2022.3 | N36: 2023.3 | O36: 増減率 | P36: 過去10年 平均増減率 | S36: 落札手数料 | T36: =INT((T43-T52)/(T45-T54)) ->  | AD36: =IF(AD52="","",INT((AD43-AD52)/(AD45-AD54))) ->  | AE36: =(AD36/AC36-1)*100 ->  | AF36: =IF(ISERROR(((AD36/T36)^(1/10)-1)*100),"-",((AD36/T36)^(1/10)-1)*100) -> -
O37: VS. Prev. year | P37: Avg YoY Change (10 year period)
B38: 出品手数料 Consignment Fees | D38: =T34 ->  | P38: =AF34 -> - | S38: 連結相殺前 | T38: =T$5 -> 2013.3 | U38: 2014.3 | V38: 2015.3 | W38: 2016.3 | X38: 2017.3 | Y38: 2018.3 | Z38: 2019.3 | AA38: 2020.3 | AB38: 2021.3 | AC38: 2022.3 | AD38: 2023.3 | AE38: 増減率 | AF38: 増減率
B39: 成約手数料 Contract Completion Fees | D39: =T35 ->  | O39: =AE35 ->  | P39: =AF35 -> - | AI39: ='Ⅱ-2-(2)_AA実績月次推移'!R10 -> 2,958,598
B40: 落札手数料 Successful Bid Fees | D40: =T36 ->  | O40: =AE36 ->  | P40: =AF36 -> - | S40: <オートオークション> | AI40: ='Ⅱ-2-(2)_AA実績月次推移'!R16 -> 1,863,988
B41: ※低額車の定義を見直したことにともない、2019.3期以前の1台当たり手数料 低額車除く（JBA除く）は、遡及して修正表示しております。 | S41: 出品手数料 | T41: 11,894,679,440 | U41: 12,320,159,778 | V41: 12,720,591,869 | W41: 12,882,947,963 | X41: 12,535,338,687 | Y41: 14,252,226,495 | Z41: 15,362,983,573 | AA41: 15,142,922,314 | AB41: 14,233,924,900 | AC41: 15,280,083,650 | AD41: 16,655,333,500 | AE41: =(AD41/AC41-1)*100 -> 9.0 | AF41: =IF(ISERROR(((AD41/T41)^(1/10)-1)*100),"-",((AD41/T41)^(1/10)-1)*100) -> 3.4
B42: *Fees per Vehicle (excl. JBA) for the periods before 2019.3 are retroactively adjusted to conform to the revised definition of Lower-priced vehicles. | S42: 成約手数料 | T42: 10,962,771,459 | U42: 12,053,252,977 | V42: 12,179,563,432 | W42: 12,441,361,552 | X42: 12,179,593,872 | Y42: 13,959,514,767 | Z42: 14,998,060,579 | AA42: 14,598,751,950 | AB42: 14,179,892,900 | AC42: 15,176,997,300 | AD42: 15,812,424,450 | AE42: =(AD42/AC42-1)*100 -> 4.2 | AF42: =IF(ISERROR(((AD42/T42)^(1/10)-1)*100),"-",((AD42/T42)^(1/10)-1)*100) -> 3.7
S43: 落札手数料 | T43: 15,630,367,900 | U43: 17,193,432,700 | V43: 17,101,712,206 | W43: 18,171,491,400 | X43: 17,989,373,370 | Y43: 20,201,420,614 | Z43: 22,323,190,400 | AA43: 21,766,064,700 | AB43: 21,584,912,900 | AC43: 23,099,982,100 | AD43: 24,008,550,200 | AE43: =(AD43/AC43-1)*100 -> 3.9 | AF43: =IF(ISERROR(((AD43/T43)^(1/10)-1)*100),"-",((AD43/T43)^(1/10)-1)*100) -> 4.4
S44: 出品台数 | T44: ='Ⅲ-1-(2)_AAｾｸﾞﾒﾝﾄ売上推移'!#REF! ->  | U44: ='Ⅲ-1-(2)_AAｾｸﾞﾒﾝﾄ売上推移'!#REF! ->  | V44: ='Ⅲ-1-(2)_AAｾｸﾞﾒﾝﾄ売上推移'!#REF! ->  | W44: ='Ⅲ-1-(2)_AAｾｸﾞﾒﾝﾄ売上推移'!#REF! ->  | X44: ='Ⅲ-1-(2)_AAｾｸﾞﾒﾝﾄ売上推移'!#REF! ->  | Y44: ='Ⅲ-1-(2)_AAｾｸﾞﾒﾝﾄ売上推移'!#REF! ->  | Z44: ='Ⅲ-1-(2)_AAｾｸﾞﾒﾝﾄ売上推移'!#REF! ->  | AA44: ='Ⅲ-1-(2)_AAｾｸﾞﾒﾝﾄ売上推移'!#REF! ->  | AB44: ='Ⅲ-1-(2)_AAｾｸﾞﾒﾝﾄ売上推移'!#REF! ->  | AC44: ='Ⅲ-1-(2)_AAｾｸﾞﾒﾝﾄ売上推移'!#REF! ->  | AD44: ='Ⅲ-1-(2)_AAｾｸﾞﾒﾝﾄ売上推移'!#REF! ->  | AE44: =(AD44/AC44-1)*100 ->  | AF44: =IF(ISERROR(((AD44/T44)^(1/10)-1)*100),"-",((AD44/T44)^(1/10)-1)*100) -> -
S45: 成約台数 | T45: ='Ⅲ-1-(2)_AAｾｸﾞﾒﾝﾄ売上推移'!#REF! ->  | U45: ='Ⅲ-1-(2)_AAｾｸﾞﾒﾝﾄ売上推移'!#REF! ->  | V45: ='Ⅲ-1-(2)_AAｾｸﾞﾒﾝﾄ売上推移'!#REF! ->  | W45: ='Ⅲ-1-(2)_AAｾｸﾞﾒﾝﾄ売上推移'!#REF! ->  | X45: ='Ⅲ-1-(2)_AAｾｸﾞﾒﾝﾄ売上推移'!#REF! ->  | Y45: ='Ⅲ-1-(2)_AAｾｸﾞﾒﾝﾄ売上推移'!#REF! ->  | Z45: ='Ⅲ-1-(2)_AAｾｸﾞﾒﾝﾄ売上推移'!#REF! ->  | AA45: ='Ⅲ-1-(2)_AAｾｸﾞﾒﾝﾄ売上推移'!#REF! ->  | AB45: ='Ⅲ-1-(2)_AAｾｸﾞﾒﾝﾄ売上推移'!#REF! ->  | AC45: ='Ⅲ-1-(2)_AAｾｸﾞﾒﾝﾄ売上推移'!#REF! ->  | AD45: ='Ⅲ-1-(2)_AAｾｸﾞﾒﾝﾄ売上推移'!#REF! ->  | AE45: =(AD45/AC45-1)*100 ->  | AF45: =IF(ISERROR(((AD45/T45)^(1/10)-1)*100),"-",((AD45/T45)^(1/10)-1)*100) -> - | AG45: ←2010.3はR名古屋のホワイト再出品手数料3,885,000円を加算。次回からは加算不要。
S47: 連結相殺前 | T47: =T$5 -> 2013.3 | U47: 2014.3 | V47: 2015.3 | W47: 2016.3 | X47: 2017.3 | Y47: 2018.3 | Z47: 2019.3 | AA47: 2020.3 | AB47: 2021.3 | AC47: 2022.3 | AD47: 2023.3 | AE47: 増減率 | AF47: 増減率
S50: リユース 出品手数料 | T50: 703,418,000 | U50: 742,636,000 | V50: 718,472,000 | W50: 729,251,000 | X50: 715,829,500 | Y50: 866,268,500 | Z50: 988,990,500 | AA50: 1,098,114,000 | AB50: 1,133,052,000 | AC50: 1,021,539,750 | AD50: 966,166,500 | AE50: =(AD50/AC50-1)*100 -> ▲ 5.4 | AF50: =IF(ISERROR(((AD50/T50)^(1/10)-1)*100),"-",((AD50/T50)^(1/10)-1)*100) -> 3.2
S51: リユース 成約手数料 | T51: 1,821,119,000 | U51: 2,124,724,300 | V51: 2,296,333,000 | W51: 2,380,707,500 | X51: 2,454,077,000 | Y51: 3,006,674,000 | Z51: 3,421,328,500 | AA51: 3,607,303,500 | AB51: 3,431,218,000 | AC51: 3,226,880,000 | AD51: 3,185,435,500 | AE51: =(AD51/AC51-1)*100 -> ▲ 1.3 | AF51: =IF(ISERROR(((AD51/T51)^(1/10)-1)*100),"-",((AD51/T51)^(1/10)-1)*100) -> 5.8
S52: リユース 落札手数料 | T52: 2,074,806,200 | U52: 2,367,349,100 | V52: 2,389,757,600 | W52: 2,404,271,400 | X52: 2,479,157,100 | Y52: 3,041,244,100 | Z52: 3,629,175,900 | AA52: 3,733,435,100 | AB52: 3,646,687,000 | AC52: 3,467,891,300 | AD52: 3,358,371,800 | AE52: =(AD52/AC52-1)*100 -> ▲ 3.2 | AF52: =IF(ISERROR(((AD52/T52)^(1/10)-1)*100),"-",((AD52/T52)^(1/10)-1)*100) -> 4.9
S53: リユース 出品台数 | T53: 345,410 | U53: 370,994 | V53: 386,544 | W53: 422,180 | X53: 421,681 | Y53: 484,381 | Z53: 547,506 | AA53: 570,806 | AB53: 498,651 | AC53: 423,500 | AD53: 428,381 | AE53: =(AD53/AC53-1)*100 -> 1.2 | AF53: =IF(ISERROR(((AD53/T53)^(1/10)-1)*100),"-",((AD53/T53)^(1/10)-1)*100) -> 2.2 | AG53: ←有価証券報告書用
S54: リユース 成約台数 | T54: 239,941 | U54: 279,529 | V54: 298,453 | W54: 313,737 | X54: 321,391 | Y54: 387,366 | Z54: 447,061 | AA54: 456,963 | AB54: 408,120 | AC54: 377,018 | AD54: 381,568 | AE54: =(AD54/AC54-1)*100 -> 1.2 | AF54: =IF(ISERROR(((AD54/T54)^(1/10)-1)*100),"-",((AD54/T54)^(1/10)-1)*100) -> 4.7
S56: 1台当たりの出品手数料 | T56: =ROUNDDOWN(T7/T44,0) ->  | AD56: =ROUNDDOWN(AD7/AD44,0) ->  | AE56: =AD56/AC56*100 ->  | AF56: =IF(ISERROR(((AD56/T56)^(1/10)-1)*100),"-",((AD56/T56)^(1/10)-1)*100) -> -
S57: 1台当たりの成約手数料 | AE57: =AD57/AC57*100 ->  | AF57: =IF(ISERROR(((AD57/T57)^(1/10)-1)*100),"-",((AD57/T57)^(1/10)-1)*100) -> -
S58: 1台当たりの落札手数料 | T58: =ROUNDDOWN(T9/T45,0) ->  | AE58: =AD58/AC58*100 ->  | AF58: =IF(ISERROR(((AD58/T58)^(1/10)-1)*100),"-",((AD58/T58)^(1/10)-1)*100) -> -
S60: ＜注意事項＞
S61: ■2004年3月以前の1台当たりの手数料：過去は四捨五入してたこともあり
S62: ■2016年3月期に連結子会社になったJBAがオークション事業に組み込まれたため、セグメントの手数料はJBAの手数料が含まれている。
S63: DB上ではJBAの手数料は反映しないため、2016年3月期からはUSSの報告数値から1台当たり手数料を計算する
S64: ■2018年3月期に連結子会社になったJAAとHAAがオークション事業に組み込まれたため、セグメントの手数料はUSS、JAA、HAA、JBAの手数料の合計となっている。
S65: DB上ではJBAの手数料は反映しないため、2018年3月期からはUSS・JAA・HAAの報告数値の合計から1台当たり手数料を計算する
S66: ■2018年3月期よりJAAとHAAの実績を含めているが、2018年3月期と2019年3月期は2社のﾘﾕｰｽ車の台数はｽﾄﾗﾋﾞｽに取込されているが、手数料がSTRAVISに取り込まれておらず参照資料「JAA,HAAリユース手数料実績.xlsx」から手数料を追加している。そのためｽﾄﾗﾋﾞｽとは一致していない。
S67: 2020年3月期からはﾘﾕｰｽ車の手数料もSTRAVISに取り込まれる
S68: ■2020.3期作成時に、ﾘﾕｰｽ対象ｺｰﾅｰの見直しを行った。その結果2010.3期～2019.3期のﾘﾕｰｽ台数と手数料を修正している。参照資料：ﾘﾕｰｽ対象ｺｰﾅｰ変更による修正2010.3-2019.3.xlsm
S69: その際に追加したｺﾒﾝﾄ「※低額車の定義を見直したことにともない、2019年3月期以前の1台当たり手数料 低額車除く（JBA除く）は、遡及して修正表示しております。」は2019.3期の記載がなくなる、2022.3期作成時コメント削除する。
S70: ■2021.3期作成時に、2019年の1台当たり手数料（1台当たり手数料低額車を除く）を修正。（2019年のJAA・HAAの手数料が誤っていたため）
S71: ■2021.3期作成時に "落札手数料"の英語（Successful Bidding Fees）を決算説明資料に合わせて（Successful Bid Fees）へ変更
S74: ●参照資料：D2110AL_●●03グループ売上.xls、C9200AL_●●03一台当たり手数料.xlsm

Sheet Ⅲ-1-(4)_AAｾｸﾞﾒﾝﾄ低額車推移
O4: (単位：台、％ Unit: No. of Vehicles, %）
C5: 2013.3 | D5: 2014.3 | E5: 2015.3 | F5: 2016.3 | G5: 2017.3 | H5: 2018.3 | I5: 2019.3 | J5: 2020.3 | K5: 2021.3 | L5: 2022.3 | M5: 2023.3 | N5: 増減率 | O5: 過去10年 平均増減率
N6: VS. Prev. year | O6: Avg YoY Change (10 year period)
B7: 出品台数 No. of Consigned Vehicles | C7: 345,410 | D7: 370,994 | E7: 386,544 | F7: 422,180 | G7: 421,681 | H7: 484,381 | I7: 547,506 | J7: 570,806 | K7: 498,651 | L7: 423,500 | M7: 428,381 | N7: 1.2 | O7: 2.2
B8: 成約台数 No. of Contracted Vehicles | C8: 239,941 | D8: 279,529 | E8: 298,453 | F8: 313,737 | G8: 321,391 | H8: 387,366 | I8: 447,061 | J8: 456,963 | K8: 408,120 | L8: 377,018 | M8: 381,568 | N8: 1.2 | O8: 4.7
B9: 成約率 Contract Completion Rate | C9: 69.5 | D9: 75.3 | E9: 77.2 | F9: 74.3 | G9: 76.2 | H9: 80.0 | I9: 81.7 | J9: 80.1 | K9: 81.8 | L9: 89.0 | M9: 89.1 | N9: - | O9: -

Sheet Ⅲ-1-(5)_AAｾｸﾞﾒﾝﾄ会員数および外部落札
Q4: (単位：社、％ Unit: No. of Companies, %）
E5: 2013.3 | F5: 2014.3 | G5: 2015.3 | H5: 2016.3 | I5: 2017.3 | J5: 2018.3 | K5: 2019.3 | L5: 2020.3 | M5: 2021.3 | N5: 2022.3 | O5: 2023.3 | P5: 増減率 | Q5: 過去10年 平均増減率
P6: VS. Prev. year | Q6: Avg YoY Change (10 year period)
B7: 現車会員 On-site Auction Members | E7: 45,139 | F7: 45,712 | G7: 46,307 | H7: 46,850 | I7: 47,111 | J7: 47,362 | K7: 48,723 | L7: 48,182 | M7: 48,058 | N7: 48,362 | O7: 48,490 | P7: 0.3 | Q7: 0.7
B8: CIS（インターネット）会員 CIS (Internet) Members | E8: 27,072 | F8: 28,007 | G8: 28,815 | H8: 29,512 | I8: 29,966 | J8: 30,337 | K8: 31,639 | L8: 31,998 | M8: 32,538 | N8: 33,359 | O8: 33,934 | P8: 1.7 | Q8: 2.3
B9: TV（衛星）会員 TV (Satellite Auction) Members | E9: 3,651 | F9: 3,486 | G9: 3,291 | H9: 3,101 | I9: 2,894 | J9: 2,623 | K9: 2,468 | L9: 2,342 | M9: 2,197 | N9: 2,081 | O9: 1,981 | P9: ▲ 4.8 | Q9: ▲ 5.9
Q12: (単位：台、％ Unit: No. of Vehicles, %）
E13: 2013.3 | F13: 2014.3 | G13: 2015.3 | H13: 2016.3 | I13: 2017.3 | J13: 2018.3 | K13: 2019.3 | L13: 2020.3 | M13: 2021.3 | N13: 2022.3 | O13: 2023.3 | P13: 増減率 | Q13: 過去10年 平均増減率
P14: VS. Prev. year | Q14: Avg YoY Change (10 year period)
C15: CIS（インターネット）落札台数 No. of Successful CIS (Internet) Bids | E15: 371,633 | F15: 398,018 | G15: 387,818 | H15: 396,216 | I15: 390,202 | J15: 404,131 | K15: 441,813 | L15: 487,052 | M15: 557,126 | N15: 579,983 | O15: 580,673 | P15: 0.1 | Q15: 4.6
C16: TV（衛星）落札台数 No. of Successful TV (Satellite Auction) Bids | E16: 369,980 | F16: 401,639 | G16: 386,451 | H16: 366,910 | I16: 352,147 | J16: 350,897 | K16: 371,191 | L16: 364,147 | M16: 343,303 | N16: 363,466 | O16: 377,795 | P16: 3.9 | Q16: 0.2
B17: 外部落札台数合計 No. of Successful Off-site Bids | E17: 741,613 | F17: 799,657 | G17: 774,269 | H17: 763,126 | I17: 742,349 | J17: 755,028 | K17: 813,004 | L17: 851,199 | M17: 900,429 | N17: 943,449 | O17: 958,468 | P17: 1.6 | Q17: 2.6
B18: 落札台数 No. of Successful Bids | E18: 1,405,072 | F18: 1,541,007 | G18: 1,545,233 | H18: 1,562,399 | I18: 1,508,843 | J18: 1,556,026 | K18: 1,712,024 | L18: 1,772,443 | M18: 1,680,810 | N18: 1,787,302 | O18: 1,863,988 | P18: 4.3 | Q18: 2.9
B19: 外部落札比率 Ratio of Successful Off-site Bids | E19: 52.8 | F19: 51.9 | G19: 50.1 | H19: 48.8 | I19: 49.2 | J19: 48.5 | K19: 47.5 | L19: 48.0 | M19: 53.6 | N19: 52.8 | O19: 51.4 | P19: - | Q19: -

Sheet Ⅲ-1-(6)_AAｾｸﾞﾒﾝﾄﾊﾞｲｸｵｰｸｼｮﾝ実績
R4: （単位：台、％ Unit：No. of Motorcycles, %）
E5: 2013.3 | F5: 2014.3 | G5: 2015.3 | H5: 2016.3 | I5: 2017.3 | J5: 2018.3 | K5: 2019.3 | L5: 2020.3 | M5: 2021.3 | N5: 2022.3 | O5: 2023.3 | P5: 増減率 | Q5: 過去10年 平均増減率
P6: VS. Prev. year | Q6: Avg YoY Change (10 year period)
B7: 出品台数 No. of Consigned Motorcycles | C7: 横浜 Yokohama | E7: 53,501 | F7: 56,532 | G7: 57,883 | H7: 63,109 | I7: 58,351 | J7: 58,369 | K7: 62,905 | L7: 61,841 | M7: 65,995 | N7: 69,258 | O7: 78,875 | P7: 13.9 | Q7: 4.0
C8: 神戸 Kobe | E8: 47,631 | F8: 46,825 | G8: 48,806 | H8: 49,933 | I8: 48,719 | J8: 51,049 | K8: 53,403 | L8: 54,009 | M8: 53,801 | N8: 55,742 | O8: 58,164 | P8: 4.3 | Q8: 2.0 | R8: -
C9: 合計 Total | E9: 101,132 | F9: 103,357 | G9: 106,689 | H9: 113,042 | I9: 107,070 | J9: 109,418 | K9: 116,308 | L9: 115,850 | M9: 119,796 | N9: 125,000 | O9: 137,039 | P9: 9.6 | Q9: 3.1 | R9: -
B10: 成約台数 No. of Contracted Motorcycles | C10: 横浜 Yokohama | E10: 48,569 | F10: 52,212 | G10: 54,702 | H10: 59,726 | I10: 53,715 | J10: 53,412 | K10: 56,692 | L10: 56,127 | M10: 59,062 | N10: 59,967 | O10: 69,089 | P10: 15.2 | Q10: 3.6 | R10: -
C11: 神戸 Kobe | E11: 44,567 | F11: 44,297 | G11: 47,011 | H11: 48,024 | I11: 45,457 | J11: 46,376 | K11: 47,681 | L11: 49,110 | M11: 49,039 | N11: 49,063 | O11: 52,736 | P11: 7.5 | Q11: 1.7 | R11: -
C12: 合計 Total | E12: 93,136 | F12: 96,509 | G12: 101,713 | H12: 107,750 | I12: 99,172 | J12: 99,788 | K12: 104,373 | L12: 105,237 | M12: 108,101 | N12: 109,030 | O12: 121,825 | P12: 11.7 | Q12: 2.7 | R12: -
B13: 成約率 Contract Completion Rate | C13: 横浜 Yokohama | E13: 90.8 | F13: 92.4 | G13: 94.5 | H13: 94.6 | I13: 92.1 | J13: 91.5 | K13: 90.1 | L13: 90.8 | M13: 89.5 | N13: 86.6 | O13: 87.6 | P13: - | Q13: - | R13: -
C14: 神戸 Kobe | E14: 93.6 | F14: 94.6 | G14: 96.3 | H14: 96.2 | I14: 93.3 | J14: 90.8 | K14: 89.3 | L14: 90.9 | M14: 91.1 | N14: 88.0 | O14: 90.7 | P14: - | Q14: - | R14: -
C15: 合計 Total | E15: 92.1 | F15: 93.4 | G15: 95.3 | H15: 95.3 | I15: 92.6 | J15: 91.2 | K15: 89.7 | L15: 90.8 | M15: 90.2 | N15: 87.2 | O15: 88.9 | P15: - | Q15: - | R15: -

Sheet Ⅲ-1-(7)_中古車買取販売ｾｸﾞﾒﾝﾄ売上推移
R4: （単位：百万円、％ Unit: Million Yen, %）
F5: 2013.3 | G5: 2014.3 | H5: 2015.3 | I5: 2016.3 | J5: 2017.3 | K5: 2018.3 | L5: 2019.3 | M5: 2020.3 | N5: 2021.3 | O5: 2022.3 | P5: 2023.3 | Q5: 増減率 | R5: 過去10年 平均増減率
Q6: VS. Prev. year | R6: Avg YoY Change (10 year period)
B7: 中古自動車買取販売 Used Vehicle Sales/Purchases | D7: 売上高 Net Sales | F7: 8,106 | G7: 7,867 | H7: 6,737 | I7: 6,765 | J7: 5,804 | K7: 5,866 | L7: 5,702 | M7: 5,059 | N7: 4,947 | O7: 5,296 | P7: 6,187 | Q7: 16.8 | R7: ▲ 2.7
D8: 営業利益 Operating Profit | F8: 424 | G8: 499 | H8: 364 | I8: 386 | J8: 125 | K8: 113 | L8: 65 | M8: 64 | N8: 142 | O8: 75 | P8: 110 | Q8: 45.5 | R8: ▲ 12.6
D9: 営業利益率 Operating Margin | F9: 5.2 | G9: 6.3 | H9: 5.4 | I9: 5.7 | J9: 2.2 | K9: 1.9 | L9: 1.1 | M9: 1.3 | N9: 2.9 | O9: 1.4 | P9: 1.8 | Q9: - | R9: -
B10: 事故現状車買取販売 Accident-damaged Vehicle Sales/ Purchases | D10: 売上高 Net Sales | F10: 3,438 | G10: 3,754 | H10: 3,347 | I10: 3,331 | J10: 3,568 | K10: 3,960 | L10: 3,998 | M10: 4,040 | N10: 3,699 | O10: 4,004 | P10: 4,204 | Q10: 5.0 | R10: 2.0
D11: 営業利益 Operating Profit | F11: 164 | G11: 224 | H11: 99 | I11: 98 | J11: 77 | K11: 58 | L11: 51 | M11: 38 | N11: 129 | O11: 60 | P11: 19 | Q11: ▲ 67.6 | R11: ▲ 19.2
D12: 営業利益率 Operating Margin | F12: 4.8 | G12: 6.0 | H12: 3.0 | I12: 3.0 | J12: 2.2 | K12: 1.5 | L12: 1.3 | M12: 1.0 | N12: 3.5 | O12: 1.5 | P12: 0.5 | Q12: - | R12: -
B13: 中古自動車等買取販売計 Used Vehicle Sales/ Purchases Business Total | D13: 売上高 Net Sales | F13: 11,545 | G13: 11,622 | H13: 10,084 | I13: 10,097 | J13: 9,373 | K13: 9,827 | L13: 9,701 | M13: 9,099 | N13: 8,646 | O13: 9,300 | P13: 10,391 | Q13: 11.7 | R13: ▲ 1.0
D14: 営業利益 Operating Profit | F14: 588 | G14: 724 | H14: 464 | I14: 485 | J14: 202 | K14: 171 | L14: 116 | M14: 103 | N14: 271 | O14: 136 | P14: 130 | Q14: ▲ 4.6 | R14: ▲ 14.0
D15: 営業利益率 Operating Margin | F15: 5.1 | G15: 6.2 | H15: 4.6 | I15: 4.8 | J15: 2.2 | K15: 1.7 | L15: 1.2 | M15: 1.1 | N15: 3.1 | O15: 1.5 | P15: 1.3 | Q15: - | R15: -
R28: (単位：店、％ Unit: No. of Shops, %)
F29: 2013.3 | G29: 2014.3 | H29: 2015.3 | I29: 2016.3 | J29: 2017.3 | K29: 2018.3 | L29: 2019.3 | M29: 2020.3 | N29: 2021.3 | O29: 2022.3 | P29: 2023.3 | Q29: 増減率 | R29: 過去10年 平均増減率
Q30: VS. Prev. year | R30: Avg YoY Change (10 year period)
B31: ラビット 直営店舗 Directly Operated Outlets among Rabbit Chain Shops | F31: 24 | G31: 23 | H31: 22 | I31: 23 | J31: 22 | K31: 20 | L31: 17 | M31: 15 | N31: 15 | O31: 15 | P31: 15 | Q31: 0.0 | R31: ▲ 4.6
B32: ラビット FC店舗 Franchise Outlets among Rabbit Chain Shops | F32: 156 | G32: 148 | H32: 148 | I32: 147 | J32: 147 | K32: 144 | L32: 141 | M32: 137 | N32: 128 | O32: 129 | P32: 132 | Q32: 2.3 | R32: ▲ 1.7
B33: ラビット 店舗計 Rabbit Chain Shops | F33: 180 | G33: 171 | H33: 170 | I33: 170 | J33: 169 | K33: 164 | L33: 158 | M33: 152 | N33: 143 | O33: 144 | P33: 147 | Q33: 2.1 | R33: ▲ 2.0

Sheet Ⅲ-1-(8)_ﾘｻｲｸﾙｾｸﾞﾒﾝﾄ売上推移
R4: （単位：百万円、％ Unit: Million Yen, %）
F5: 2013.3 | G5: 2014.3 | H5: 2015.3 | I5: 2016.3 | J5: 2017.3 | K5: 2018.3 | L5: 2019.3 | M5: 2020.3 | N5: 2021.3 | O5: 2022.3 | P5: 2023.3 | Q5: 増減率 | R5: 過去10年 平均増減率
Q6: VS. Prev. year | R6: Avg YoY Change (10 year period)
C7: 資源リサイクル Resource Recycling | D7: 売上高 Net Sales | F7: 4,019 | G7: 4,821 | H7: 5,027 | I7: 4,670 | J7: 4,512 | K7: 5,243 | L7: 4,913 | M7: 4,703 | N7: 4,146 | O7: 5,355 | P7: 5,059 | Q7: ▲ 5.5 | R7: 2.3
D8: 営業利益 Operating Profit | F8: 103 | G8: 506 | H8: 462 | I8: 171 | J8: 114 | K8: 604 | L8: 481 | M8: 334 | N8: 391 | O8: 930 | P8: 532 | Q8: ▲ 42.8 | R8: 17.8
D9: 営業利益率 Operating Margin | F9: 2.6 | G9: 10.5 | H9: 9.2 | I9: 3.7 | J9: 2.5 | K9: 11.5 | L9: 9.8 | M9: 7.1 | N9: 9.4 | O9: 17.4 | P9: 10.5 | Q9: - | R9: -
C10: プラントリサイクル Industrial Plant Recycling | D10: 売上高 Net Sales | F10: - | G10: - | H10: - | I10: - | J10: - | K10: - | L10: - | M10: 460 | N10: 685 | O10: 1,885 | P10: 3,925 | Q10: 108.2 | R10: 104.3
D11: 営業利益または営業損失(▲) Operating profit (loss) | F11: - | G11: - | H11: - | I11: - | J11: - | K11: - | L11: - | M11: ▲ 25 | N11: ▲ 15 | O11: 211 | P11: 801 | Q11: 278.5 | R11: -
D12: 営業利益率 Operating Margin | F12: - | G12: - | H12: - | I12: - | J12: - | K12: - | L12: - | M12: ▲ 5.5 | N12: ▲ 2.2 | O12: 11.2 | P12: 20.4 | Q12: - | R12: -
C13: リサイクル 計 Recycling Business Total | D13: 売上高 Net Sales | F13: 4,019 | G13: 4,821 | H13: 5,027 | I13: 4,670 | J13: 4,512 | K13: 5,243 | L13: 4,913 | M13: 5,163 | N13: 4,831 | O13: 7,241 | P13: 8,985 | Q13: 24.1 | R13: 8.4
D14: 営業利益 Operating Profit | F14: 103 | G14: 506 | H14: 462 | I14: 171 | J14: 114 | K14: 604 | L14: 481 | M14: 309 | N14: 376 | O14: 1,142 | P14: 1,333 | Q14: 16.7 | R14: 29.1
D15: 営業利益率 Operating Margin | F15: 2.6 | G15: 10.5 | H15: 9.2 | I15: 3.7 | J15: 2.5 | K15: 11.5 | L15: 9.8 | M15: 6.0 | N15: 7.8 | O15: 15.8 | P15: 14.8 | Q15: - | R15: -
Q18: （単位：円/Mt、％ Unit: Yen/Mt, %）
F19: 2013.3 | G19: 2014.3 | H19: 2015.3 | I19: 2016.3 | J19: 2017.3 | K19: 2018.3 | L19: 2019.3 | M19: 2020.3 | N19: 2021.3 | O19: 2022.3 | P19: 2023.3 | Q19: 増減率
Q20: VS. Prev. year
C21: 最低値 Lowest | F21: 21,200 | G21: 29,708 | H21: 23,300 | I21: 14,092 | J21: 17,542 | K21: 23,707 | L21: 28,940 | M21: 19,842 | N21: 19,213 | O21: 41,642 | P21: 43,020 | Q21: 3.3
C22: 最高値 Highest | F22: 33,892 | G22: 37,092 | H22: 32,100 | I22: 25,108 | J22: 28,473 | K22: 36,367 | L22: 36,247 | M22: 31,108 | N22: 40,260 | O22: 61,003 | P22: 65,192 | Q22: 6.9
C23: 平均値 Average | F23: 27,145 | G23: 32,957 | H23: 28,771 | I23: 18,847 | J23: 22,086 | K23: 30,822 | L23: 32,990 | M23: 24,727 | N23: 28,922 | O23: 51,336 | P23: 51,651 | Q23: 0.6
B24: (出所：(株)日刊市況通信社) (Sources: Nikkan Shikyo Tsushinsha Co.,Ltd.)

Sheet Ⅲ-2-(1)_連結PL
P4: （単位：百万円、％ Unit: Million Yen, %）
D5: 2013.3 | E5: 2014.3 | F5: 2015.3 | G5: 2016.3 | H5: 2017.3 | I5: 2018.3 | J5: 2019.3 | K5: 2020.3 | L5: 2021.3 | M5: 2022.3 | N5: 2023.3 | O5: 増減率 | P5: 過去10年 平均増減率
O6: VS. Prev. year | P6: Avg YoY Change (10 year period)
B7: 売上高 Net Sales | D7: 63,243 | E7: 67,949 | F7: 67,466 | G7: 68,607 | H7: 67,179 | I7: 75,153 | J7: 79,908 | K7: 78,143 | L7: 74,874 | M7: 81,482 | N7: 88,778 | O7: 9.0 | P7: 3.4
B8: 売上原価 Cost of Sales | D8: 24,982 | E8: 26,459 | F8: 25,774 | G8: 25,867 | H8: 26,413 | I8: 29,174 | J8: 31,391 | K8: 30,954 | L8: 28,341 | M8: 30,710 | N8: 35,135 | O8: 14.4 | P8: 3.5
B9: 売上総利益 Gross Profit | D9: 38,260 | E9: 41,489 | F9: 41,691 | G9: 42,740 | H9: 40,765 | I9: 45,979 | J9: 48,516 | K9: 47,188 | L9: 46,533 | M9: 50,772 | N9: 53,642 | O9: 5.7 | P9: 3.4
B10: 売上総利益率 Gross Profit Margin | D10: 60.5 | E10: 61.1 | F10: 61.8 | G10: 62.3 | H10: 60.7 | I10: 61.2 | J10: 60.7 | K10: 60.4 | L10: 62.1 | M10: 62.3 | N10: 60.4 | O10: - | P10: -
B11: 販売費及び一般管理費 Selling, General and Administrative Expenses | D11: 8,955 | E11: 8,808 | F11: 8,279 | G11: 8,248 | H11: 8,368 | I11: 9,907 | J11: 11,393 | K11: 11,179 | L11: 10,306 | M11: 9,197 | N11: 9,864 | O11: 7.3 | P11: 1.0
B12: 販売費及び一般管理費率 Selling, General and Administrative Expenses Ratio | D12: 14.2 | E12: 13.0 | F12: 12.3 | G12: 12.0 | H12: 12.5 | I12: 13.2 | J12: 14.3 | K12: 14.3 | L12: 13.8 | M12: 11.3 | N12: 11.1 | O12: - | P12: -
B13: 営業利益 Operating Profit | D13: 29,304 | E13: 32,680 | F13: 33,411 | G13: 34,491 | H13: 32,396 | I13: 36,071 | J13: 37,123 | K13: 36,009 | L13: 36,227 | M13: 41,574 | N13: 43,778 | O13: 5.3 | P13: 4.1
B14: 営業利益率 Operating Margin | D14: 46.3 | E14: 48.1 | F14: 49.5 | G14: 50.3 | H14: 48.2 | I14: 48.0 | J14: 46.5 | K14: 46.1 | L14: 48.4 | M14: 51.0 | N14: 49.3 | O14: - | P14: -
B15: 営業外収益 Non-operating Income | D15: 672 | E15: 705 | F15: 718 | G15: 811 | H15: 680 | I15: 681 | J15: 990 | K15: 866 | L15: 950 | M15: 984 | N15: 915 | O15: ▲ 7.1 | P15: 3.1
B16: 営業外費用 Non-operating Expenses | D16: 92 | E16: 110 | F16: 102 | G16: 84 | H16: 77 | I16: 76 | J16: 74 | K16: 165 | L16: 181 | M16: 185 | N16: 201 | O16: 8.9 | P16: 8.1
B17: 経常利益 Ordinary Profit | D17: 29,884 | E17: 33,275 | F17: 34,027 | G17: 35,218 | H17: 32,999 | I17: 36,676 | J17: 38,039 | K17: 36,710 | L17: 36,996 | M17: 42,374 | N17: 44,491 | O17: 5.0 | P17: 4.1
B18: 特別利益 Extraordinary Income | D18: 22 | E18: 80 | F18: 336 | G18: 63 | H18: 154 | I18: 109 | J18: 472 | K18: 38 | L18: 57 | M18: 1,650 | N18: 72 | O18: ▲ 95.6 | P18: 12.6
B19: 特別損失 Extraordinary Losses | D19: 79 | E19: 679 | F19: 202 | G19: 864 | H19: 672 | I19: 128 | J19: 181 | K19: 4,013 | L19: 21,832 | M19: 149 | N19: 62 | O19: ▲ 58.4 | P19: ▲ 2.4
B20: 税金等調整前当期純利益 Profit Before Income Taxes | D20: 29,827 | E20: 32,676 | F20: 34,162 | G20: 34,418 | H20: 32,481 | I20: 36,657 | J20: 38,330 | K20: 32,736 | L20: 15,220 | M20: 43,874 | N20: 44,501 | O20: 1.4 | P20: 4.1
B21: 法人税等 Income Taxes | D21: 11,438 | E21: 12,520 | F21: 12,345 | G21: 11,860 | H21: 9,475 | I21: 11,617 | J21: 12,391 | K21: 11,914 | L21: 10,962 | M21: 13,246 | N21: 13,784 | O21: 4.1 | P21: 1.9
B22: 法人税率 Tax Rate | D22: 38.3 | E22: 38.3 | F22: 36.1 | G22: 34.5 | H22: 29.2 | I22: 31.7 | J22: 32.3 | K22: 36.4 | L22: 72.0 | M22: 30.2 | N22: 31.0 | O22: - | P22: -
B23: 非支配株主に帰属する当期純利益 Profit Attributable to Non-controlling Interests | D23: 42 | E23: 190 | F23: 155 | G23: 80 | H23: 96 | I23: 753 | J23: 395 | K23: 187 | L23: 235 | M23: 882 | N23: 708 | O23: ▲ 19.7 | P23: 32.6
B24: 親会社株主に帰属する当期純利益 Profit Attributable to Owners of Parent | D24: 18,346 | E24: 19,966 | F24: 21,661 | G24: 22,477 | H24: 22,909 | I24: 24,285 | J24: 25,543 | K24: 20,634 | L24: 4,022 | M24: 29,745 | N24: 30,008 | O24: 0.9 | P24: 5.0
B25: 包括利益 Comprehensive Income | D25: 18,453 | E25: 20,204 | F25: 21,454 | G25: 22,473 | H25: 22,895 | I25: 25,132 | J25: 25,848 | K25: 20,764 | L25: 4,628 | M25: 31,187 | N25: 30,458 | O25: ▲ 2.3 | P25: 5.1

Sheet Ⅲ-2-(2)_連結BS
S4: （単位：百万円、％ Unit: Million Yen, %）
G5: 2013.3 | H5: 2014.3 | I5: 2015.3 | J5: 2016.3 | K5: 2017.3 | L5: 2018.3 | M5: 2019.3 | N5: 2020.3 | O5: 2021.3 | P5: 2022.3 | Q5: 2023.3 | R5: 増減率 | S5: 過去10年 平均増減率
R6: VS. Prev. year | S6: Avg YoY Change (10 year period)
B7: 資産の部 | C7: 流動資産 Current Assets | G7: 56,047 | H7: 60,477 | I7: 73,334 | J7: 81,440 | K7: 91,462 | L7: 62,777 | M7: 77,431 | N7: 68,096 | O7: 81,528 | P7: 103,872 | Q7: 116,057 | R7: 11.7 | S7: 7.6
B8: Assets | E8: 現金及び預金 Cash and Deposits | G8: 37,033 | H8: 46,318 | I8: 49,862 | J8: 62,290 | K8: 74,778 | L8: 39,622 | M8: 51,352 | N8: 50,729 | O8: 67,770 | P8: 79,380 | Q8: 92,692
E9: オークション貸勘定 Receivables Due from Member Dealers at Auction | G9: 13,660 | H9: 8,701 | I9: 7,885 | J9: 10,612 | K9: 11,668 | L9: 18,846 | M9: 16,502 | N9: 5,603 | O9: 6,596 | P9: 14,572 | Q9: 13,314
E10: 受取手形、売掛金及び契約資産 Notes and Accounts Receivable-Trade, and Contract Assets | G10: 2,662 | H10: 2,975 | I10: 2,963 | J10: 2,610 | K10: 2,605 | L10: 2,720 | M10: 3,154 | N10: 2,894 | O10: 2,215 | P10: 2,425 | Q10: 2,982
E11: 繰延税金資産 Deferred Tax Assets | G11: 718 | H11: 785 | I11: 754 | J11: 570 | K11: 919 | L11: - | M11: - | N11: - | O11: - | P11: - | Q11: -
E12: その他 Other | G12: 2,014 | H12: 1,744 | I12: 11,908 | J12: 5,400 | K12: 1,529 | L12: 1,649 | M12: 6,467 | N12: 8,908 | O12: 4,968 | P12: 7,511 | Q12: 7,103
E13: 貸倒引当金 Allowance for Doubtful Accounts | G13: ▲ 41 | H13: ▲ 47 | I13: ▲ 39 | J13: ▲ 44 | K13: ▲ 38 | L13: ▲ 61 | M13: ▲ 44 | N13: ▲ 38 | O13: ▲ 23 | P13: ▲ 18 | Q13: ▲ 35
C14: 固定資産 Non-current Assets | G14: 98,496 | H14: 103,704 | I14: 100,771 | J14: 105,391 | K14: 105,911 | L14: 159,514 | M14: 155,271 | N14: 151,037 | O14: 129,171 | P14: 125,481 | Q14: 126,295 | R14: 0.6 | S14: 2.5
D15: 有形固定資産 Property, Plant and Equipment | G15: 88,470 | H15: 92,337 | I15: 91,388 | J15: 96,101 | K15: 96,868 | L15: 106,508 | M15: 104,887 | N15: 106,747 | O15: 103,302 | P15: 100,379 | Q15: 100,604 | R15: 0.2 | S15: 1.3
E16: 建物及び構築物 Buildings and Structures,net | G16: 27,537 | H16: 31,249 | I16: 31,070 | J16: 36,699 | K16: 35,979 | L16: 37,555 | M16: 34,972 | N16: 36,573 | O16: 35,548 | P16: 33,426 | Q16: 34,313
E17: 機械装置及び運搬具 Machinery, Equipment and Vehicles,net | G17: 434 | H17: 866 | I17: 791 | J17: 747 | K17: 727 | L17: 785 | M17: 966 | N17: 759 | O17: 872 | P17: 709 | Q17: 653
E18: 工具、器具及び備品 Tools, Furniture and Fixtures,net | G18: 860 | H18: 1,490 | I18: 1,196 | J18: 1,100 | K18: 2,787 | L18: 2,426 | M18: 2,194 | N18: 2,536 | O18: 3,043 | P18: 2,286 | Q18: 1,800
E19: 土地 Land | G19: 58,190 | H19: 57,659 | I19: 57,760 | J19: 56,937 | K19: 56,911 | L19: 65,623 | M19: 65,027 | N19: 65,031 | O19: 63,686 | P19: 63,577 | Q19: 63,577
E20: その他 Other | G20: 1,882 | H20: 1,937 | I20: 1,360 | J20: 1,363 | K20: 1,189 | L20: 903 | M20: 2,693 | N20: 2,606 | O20: 1,024 | P20: 1,089 | Q20: 912
D21: 無形固定資産 Intangible Assets | G21: 818 | H21: 1,068 | I21: 1,137 | J21: 1,578 | K21: 1,850 | L21: 44,817 | M21: 42,358 | N21: 36,120 | O21: 15,188 | P21: 14,575 | Q21: 13,545 | R21: ▲ 7.1 | S21: 32.4
E22: のれん Goodwill | G22: 17 | H22: 5 | I22: - | J22: 396 | K22: 313 | L22: 37,280 | M22: 35,297 | N22: 29,449 | O22: 8,906 | P22: 8,366 | Q22: 7,826
E23: その他 Other | G23: 800 | H23: 1,062 | I23: 1,137 | J23: 1,181 | K23: 1,537 | L23: 7,536 | M23: 7,061 | N23: 6,671 | O23: 6,281 | P23: 6,209 | Q23: 5,718
D24: 投資その他の資産 Investments and Other Assets | G24: 9,206 | H24: 10,299 | I24: 8,245 | J24: 7,711 | K24: 7,192 | L24: 8,188 | M24: 8,025 | N24: 8,168 | O24: 10,680 | P24: 10,526 | Q24: 12,144 | R24: 15.4 | S24: 2.8
E25: 投資有価証券 Investment Securities | G25: 1,185 | H25: 1,259 | I25: 815 | J25: 674 | K25: 483 | L25: 637 | M25: 500 | N25: 627 | O25: 1,248 | P25: 1,918 | Q25: 2,530
E26: 長期前払費用 Long-term Prepaid Expenses | G26: 345 | H26: 225 | I26: 209 | J26: 215 | K26: 172 | L26: 154 | M26: 104 | N26: 73 | O26: 484 | P26: 383 | Q26: 270
E27: 繰延税金資産 Deferred Tax Assets | G27: 1,286 | H27: 1,132 | I27: 954 | J27: 716 | K27: 843 | L27: 1,442 | M27: 1,487 | N27: 1,507 | O27: 1,615 | P27: 843 | Q27: 1,097
E28: 再評価に係る繰延税金資産 Deferred Tax Assets for Land Revaluation | G28: 2,927 | H28: 2,930 | I28: 2,691 | J28: 2,556 | K28: 2,482 | L28: 2,455 | M28: 2,455 | N28: 2,455 | O28: 2,456 | P28: 2,456 | Q28: 2,456
E29: その他 Other | G29: 3,898 | H29: 5,047 | I29: 3,870 | J29: 4,256 | K29: 3,873 | L29: 4,146 | M29: 4,117 | N29: 3,734 | O29: 5,502 | P29: 5,414 | Q29: 6,204
E30: 貸倒引当金 Allowance for Doubtful Accounts | G30: ▲ 91 | H30: ▲ 70 | I30: ▲ 85 | J30: ▲ 491 | K30: ▲ 490 | L30: ▲ 493 | M30: ▲ 535 | N30: ▲ 157 | O30: ▲ 143 | P30: ▲ 106 | Q30: ▲ 143
B31: 資産合計 Total Assets | G31: 154,543 | H31: 164,182 | I31: 174,106 | J31: 186,831 | K31: 197,374 | L31: 222,292 | M31: 232,703 | N31: 219,133 | O31: 210,699 | P31: 229,354 | Q31: 242,352 | R31: 5.7 | S31: 4.6
B32: 負債の部 | C32: 流動負債 Current Liabilities | G32: 28,165 | H32: 25,657 | I32: 23,910 | J32: 25,937 | K32: 28,801 | L32: 37,373 | M32: 38,077 | N32: 24,497 | O32: 26,922 | P32: 37,884 | Q32: 39,273 | R32: 3.7 | S32: 3.4
B33: Liabilities | E33: オークション借勘定 Payables Due to Member Dealers at Auction | G33: 16,185 | H33: 11,852 | I33: 9,753 | J33: 13,288 | K33: 15,051 | L33: 22,339 | M33: 22,209 | N33: 8,721 | O33: 11,788 | P33: 21,213 | Q33: 22,595
E34: 短期借入金 Short-term Borrowings | G34: 93 | H34: 80 | I34: - | J34: 121 | K34: 250 | L34: 220 | M34: 397 | N34: 520 | O34: 220 | P34: 406 | Q34: 560
E35: 未払法人税等 Income Taxes Payable | G35: 4,921 | H35: 7,254 | I35: 5,916 | J35: 5,409 | K35: 5,108 | L35: 6,954 | M35: 6,783 | N35: 5,623 | O35: 7,408 | P35: 7,578 | Q35: 7,864
E36: 預り金 Deposits Received | G36: 2,410 | H36: 2,461 | I36: 2,252 | J36: 2,207 | K36: 1,974 | L36: 2,610 | M36: 2,223 | N36: 1,771 | O36: 1,893 | P36: 2,054 | Q36: 2,099
E37: その他 Other | G37: 6,965 | H37: 6,469 | I37: 8,240 | J37: 7,118 | K37: 8,390 | L37: 7,858 | M37: 8,686 | N37: 9,633 | O37: 7,504 | P37: 8,684 | Q37: 8,253
C38: 固定負債 Non-current Liabilities | G38: 6,701 | H38: 6,423 | I38: 6,156 | J38: 5,710 | K38: 9,375 | L38: 12,728 | M38: 11,090 | N38: 10,656 | O38: 10,253 | P38: 8,996 | Q38: 8,925 | R38: ▲ 0.8 | S38: 2.9
E39: 長期借入金 Long-term Borrowings | G39: 864 | H39: 549 | I39: 300 | J39: 21 | K39: 3,820 | L39: 3,330 | M39: 2,640 | N39: 2,420 | O39: 2,911 | P39: 2,356 | Q39: 1,794
E40: 退職給付に係る負債 Retirement Benefit Liability | G40: 75 | H40: 88 | I40: 149 | J40: 253 | K40: 368 | L40: 695 | M40: 771 | N40: 834 | O40: 776 | P40: 872 | Q40: 927
E41: 繰延税金負債 Deferred Tax Liabilities | G41: - | H41: - | I41: - | J41: - | K41: - | L41: 1,827 | M41: 1,752 | N41: 1,655 | O41: 747 | P41: - | Q41: -
E42: 長期預り保証金 Long-term Guarantee Deposits | G42: 4,227 | H42: 4,331 | I42: 4,400 | J42: 4,601 | K42: 4,634 | L42: 6,065 | M42: 5,096 | N42: 4,907 | O42: 4,886 | P42: 4,869 | Q42: 4,916
E43: その他 Other | G43: 1,534 | H43: 1,453 | I43: 1,305 | J43: 833 | K43: 553 | L43: 810 | M43: 830 | N43: 837 | O43: 932 | P43: 897 | Q43: 1,287
B44: 負債合計 Total Liabilities | G44: 34,866 | H44: 32,080 | I44: 30,067 | J44: 31,647 | K44: 38,176 | L44: 50,102 | M44: 49,168 | N44: 35,153 | O44: 37,175 | P44: 46,880 | Q44: 48,198 | R44: 2.8 | S44: 3.3
B45: 純資産の部 | C45: 株主資本 Shareholders' Equity | G45: 124,273 | H45: 136,466 | I45: 148,654 | J45: 159,865 | K45: 163,681 | L45: 176,266 | M45: 187,287 | N45: 187,585 | O45: 176,673 | P45: 184,600 | Q45: 195,976 | R45: 6.2 | S45: 4.7
B46: Net Assets | E46: 資本金 Share Capital | G46: 18,881 | H46: 18,881 | I46: 18,881 | J46: 18,881 | K46: 18,881 | L46: 18,881 | M46: 18,881 | N46: 18,881 | O46: 18,881 | P46: 18,881 | Q46: 18,881
E47: 資本剰余金 Capital Surplus | G47: 18,969 | H47: 18,937 | I47: 18,933 | J47: 18,914 | K47: 18,913 | L47: 18,914 | M47: 18,913 | N47: 18,911 | O47: 18,911 | P47: 18,915 | Q47: 8,992
E48: 利益剰余金 Retained Earnings | G48: 125,599 | H48: 137,638 | I48: 149,718 | J48: 161,926 | K48: 173,488 | L48: 185,835 | M48: 198,940 | N48: 206,654 | O48: 196,315 | P48: 211,843 | Q48: 180,137
E49: 自己株式 Treasury Shares | G49: ▲ 39,177 | H49: ▲ 38,990 | I49: ▲ 38,878 | J49: ▲ 39,856 | K49: ▲ 47,602 | L49: ▲ 47,365 | M49: ▲ 49,448 | N49: ▲ 56,861 | O49: ▲ 57,435 | P49: ▲ 65,039 | Q49: ▲ 12,034
C50: その他の包括利益累計額 Accumulated Other Comprehensive Income | G50: ▲ 5,160 | H50: ▲ 5,117 | I50: ▲ 5,555 | J50: ▲ 5,710 | K50: ▲ 5,652 | L50: ▲ 5,498 | M50: ▲ 5,588 | N50: ▲ 5,646 | O50: ▲ 5,278 | P50: ▲ 4,719 | Q50: ▲ 4,979 | R50: - | S50: -
E51: その他有価証券評価差額金 Valuation Difference on Available-for-sale Securities | G51: 158 | H51: 206 | I51: 103 | J51: 160 | K51: 46 | L51: 141 | M51: 60 | N51: 2 | O51: 378 | P51: 930 | Q51: 660
E52: 土地再評価差額金 Revaluation Reserve for Land | G52: ▲ 5,319 | H52: ▲ 5,324 | I52: ▲ 5,659 | J52: ▲ 5,863 | K52: ▲ 5,694 | L52: ▲ 5,633 | M52: ▲ 5,633 | N52: ▲ 5,633 | O52: ▲ 5,636 | P52: ▲ 5,636 | Q52: ▲ 5,636
E53: 退職給付に係る調整累計額 Remeasurements of Defined Benefit Plans | G53: - | H53: - | I53: 0 | J53: ▲ 7 | K53: ▲ 3 | L53: ▲ 6 | M53: ▲ 15 | N53: ▲ 15 | O53: ▲ 21 | P53: ▲ 14 | Q53: ▲ 3
C54: 新株予約権 Share Acquisition Rights | G54: 237 | H54: 242 | I54: 273 | J54: 262 | K54: 306 | L54: 364 | M54: 423 | N54: 494 | O54: 432 | P54: 457 | Q54: 457 | R54: 0.0 | S54: 6.8
C55: 非支配株主持分 Non-controlling Interests | G55: 327 | H55: 510 | I55: 666 | J55: 765 | K55: 861 | L55: 1,058 | M55: 1,412 | N55: 1,546 | O55: 1,697 | P55: 2,136 | Q55: 2,699 | R55: 26.4 | S55: 23.5
B56: 純資産合計 Total Net Assets | G56: 119,676 | H56: 132,102 | I56: 144,039 | J56: 155,183 | K56: 159,197 | L56: 172,190 | M56: 183,535 | N56: 183,980 | O56: 173,524 | P56: 182,473 | Q56: 194,154 | R56: 6.4 | S56: 5.0
B57: 負債・純資産合計 Total Liabilities and Net Assets | G57: 154,543 | H57: 164,182 | I57: 174,106 | J57: 186,831 | K57: 197,374 | L57: 222,292 | M57: 232,703 | N57: 219,133 | O57: 210,699 | P57: 229,354 | Q57: 242,352 | R57: 5.7 | S57: 4.6

Sheet Ⅲ-2-(3)_連結CF
P4: （単位：百万円 Unit: Million Yen）
F5: 2013.3 | G5: 2014.3 | H5: 2015.3 | I5: 2016.3 | J5: 2017.3 | K5: 2018.3 | L5: 2019.3 | M5: 2020.3 | N5: 2021.3 | O5: 2022.3 | P5: 2023.3
B7: Ⅰ営業活動によるキャッシュ・フロー Cash Flows from Operating Activities
C8: 税金等調整前当期純利益 Profit Before Income Taxes | F8: 29,827 | G8: 32,676 | H8: 34,162 | I8: 34,418 | J8: 32,481 | K8: 36,657 | L8: 38,330 | M8: 32,736 | N8: 15,220 | O8: 43,874 | P8: 44,501
C9: 減価償却費及びその他の償却費 Depreciation and Amortization | F9: 3,582 | G9: 3,823 | H9: 3,532 | I9: 3,413 | J9: 4,691 | K9: 5,066 | L9: 5,372 | M9: 5,099 | N9: 5,372 | O9: 5,090 | P9: 4,754
C10: 減損損失 Impairment Losses | F10: - | G10: 413 | H10: 71 | I10: - | J10: 29 | K10: 10 | L10: 3 | M10: 3,873 | N10: 18,812 | O10: - | P10: -
C11: のれん償却額 Amortization of Goodwill | F11: ▲0 | G11: 20 | H11: 5 | I11: 20 | J11: 83 | K11: 1,033 | L11: 1,983 | M11: 1,983 | N11: 1,741 | O11: 539 | P11: 539
C12: 受取利息及び受取配当金 Interest and Dividend Income | F12: ▲ 40 | G12: ▲ 50 | H12: ▲ 56 | I12: ▲ 72 | J12: ▲ 46 | K12: ▲ 23 | L12: ▲ 319 | M12: ▲ 17 | N12: ▲ 75 | O12: ▲ 26 | P12: ▲ 48
C13: 支払利息 Interest Expenses | F13: 6 | G13: 1 | H13: 0 | I13: 0 | J13: 1 | K13: 10 | L13: 11 | M13: 13 | N13: 13 | O13: 12 | P13: 11
C14: オークション勘定の増減額 Net Change in Due from/to Member Dealers at Auction | F14: 1,005 | G14: 626 | H14: ▲ 1,282 | I14: 886 | J14: 707 | K14: 603 | L14: 2,214 | M14: ▲ 2,589 | N14: 2,074 | O14: 1,449 | P14: 2,639
C15: 売上債権の増減額 Decrease (Increase) in Trade Receivables | F15: 72 | G15: ▲ 313 | H15: 11 | I15: ▲ 54 | J15: 4 | K15: ▲ 87 | L15: ▲ 433 | M15: 259 | N15: 679 | O15: ▲ 209 | P15: ▲ 557
C16: その他 Other,net | F16: ▲ 233 | G16: ▲ 480 | H16: 1,215 | I16: ▲ 711 | J16: 1,214 | K16: ▲ 540 | L16: ▲ 1,260 | M16: ▲ 844 | N16: 4,047 | O16: ▲ 767 | P16: ▲ 1,164
C17: 小計 Subtotal | F17: 34,219 | G17: 36,718 | H17: 37,660 | I17: 37,901 | J17: 39,167 | K17: 42,730 | L17: 45,900 | M17: 40,513 | N17: 47,888 | O17: 49,962 | P17: 50,678
C18: 利息及び配当金の受取額 Interest and Dividends Received | F18: 41 | G18: 78 | H18: 73 | I18: 103 | J18: 69 | K18: 47 | L18: 330 | M18: 22 | N18: 87 | O18: 45 | P18: 57
C19: 利息の支払額 Interest Paid | F19: ▲ 6 | G19: ▲ 2 | H19: ▲ 1 | I19: ▲0 | J19: ▲ 1 | K19: ▲ 11 | L19: ▲ 11 | M19: ▲ 14 | N19: ▲ 14 | O19: ▲ 13 | P19: ▲ 12
C20: 法人税等の支払額 Income Taxes Paid | F20: ▲ 12,194 | G20: ▲ 10,152 | H20: ▲ 13,444 | I20: ▲ 11,974 | J20: ▲ 10,353 | K20: ▲ 10,261 | L20: ▲ 13,324 | M20: ▲ 13,276 | N20: ▲ 9,553 | O20: ▲ 13,363 | P20: ▲ 13,816
C21: 営業活動によるキャッシュ・フロー Net Cash provided by (used in) Operating Activities | F21: 22,059 | G21: 26,642 | H21: 24,287 | I21: 26,030 | J21: 28,882 | K21: 32,505 | L21: 32,894 | M21: 27,245 | N21: 38,407 | O21: 36,630 | P21: 36,907
B22: Ⅱ投資活動によるキャッシュ・フロー Cash Flows from Investing Activities
C23: 有形固定資産の取得による支出 Purchase of Property, Plant and Equipment | F23: ▲ 1,441 | G23: ▲ 8,298 | H23: ▲ 2,121 | I23: ▲ 8,455 | J23: ▲ 5,148 | K23: ▲ 3,988 | L23: ▲ 1,837 | M23: ▲ 3,913 | N23: ▲ 5,241 | O23: ▲ 1,127 | P23: ▲ 4,100
C24: 有形固定資産の売却による収入 Proceeds from Sale of Property, Plant and Equipment | F24: 48 | G24: 41 | H24: 51 | I24: 23 | J24: 37 | K24: 56 | L24: 633 | M24: 46 | N24: 92 | O24: 55 | P24: 79
C25: その他 Other,net | F25: 6,071 | G25: ▲ 10,494 | H25: ▲ 17,653 | I25: 2,738 | J25: 287 | K25: ▲ 30,565 | L25: ▲ 292 | M25: ▲ 1,039 | N25: ▲ 4,181 | O25: ▲ 268 | P25: ▲ 5,053
C26: 投資活動によるキャッシュ・フロー Net Cash provided by (used in) Investing Activities | F26: 4,679 | G26: ▲ 18,751 | H26: ▲ 19,724 | I26: ▲ 5,694 | J26: ▲ 4,823 | K26: ▲ 34,498 | L26: ▲ 1,496 | M26: ▲ 4,906 | N26: ▲ 9,330 | O26: ▲ 1,339 | P26: ▲ 9,074
B27: Ⅲ財務活動によるキャッシュ・フロー Cash Flows from Financing Activities
C28: 短期借入金純増減額 Net Increase (Decrease) in Short-term Borrowings | F28: - | G28: - | H28: - | I28: ▲ 20 | J28: ▲ 30 | K28: ▲ 30 | L28: - | M28: 300 | N28: ▲ 300 | O28: 186 | P28: 153
C29: 長期借入金純増減額 Net Increase (Decrease) in Long-term Borrowings | F29: ▲ 310 | G29: ▲ 326 | H29: ▲ 329 | I29: ▲ 266 | J29: 3,957 | K29: ▲ 489 | L29: ▲ 512 | M29: ▲ 397 | N29: 491 | O29: ▲ 554 | P29: ▲ 562
C30: 自己株式の取得による支出 Purchase of Treasury Shares | F30: ▲ 12,309 | G30: ▲0 | H30: ▲0 | I30: ▲ 1,145 | J30: ▲ 8,230 | K30: ▲0 | L30: ▲ 2,359 | M30: ▲ 7,641 | N30: ▲ 978 | O30: ▲ 7,973 | P30: ▲ 1,632
C31: 配当金の支払額 Dividends Paid | F31: ▲ 7,811 | G31: ▲ 7,918 | H31: ▲ 9,656 | I31: ▲ 10,266 | J31: ▲ 11,178 | K31: ▲ 11,878 | L31: ▲ 12,438 | M31: ▲ 12,920 | N31: ▲ 14,364 | O31: ▲ 14,218 | P31: ▲ 17,323
C32: その他 Other,net | F32: ▲ 15 | G32: 139 | H32: 267 | I32: ▲ 729 | J32: 1,930 | K32: 235 | L32: ▲ 4,358 | M32: 3,695 | N32: 115 | O32: ▲ 2,121 | P32: 2,243
C33: 財務活動によるキャッシュ・フロー Net Cash provided by (used in) Financing Activities | F33: ▲ 20,446 | G33: ▲ 8,105 | H33: ▲ 9,718 | I33: ▲ 12,427 | J33: ▲ 13,550 | K33: ▲ 12,162 | L33: ▲ 19,668 | M33: ▲ 16,963 | N33: ▲ 15,035 | O33: ▲ 24,680 | P33: ▲ 17,121
B34: Ⅳ現金及び現金同等物の増減額 Net Increase (Decrease) in Cash and Cash Equivalents | F34: 6,292 | G34: ▲ 214 | H34: ▲ 5,155 | I34: 7,907 | J34: 10,507 | K34: ▲ 14,155 | L34: 11,729 | M34: 5,376 | N34: 14,041 | O34: 10,610 | P34: 10,711
B35: Ⅴ現金及び現金同等物の期首残高 Cash and Cash Equivalents at Beginning of Period | F35: 28,540 | G35: 34,833 | H35: 34,618 | I35: 29,462 | J35: 37,370 | K35: 47,878 | L35: 33,722 | M35: 45,452 | N35: 50,829 | O35: 64,870 | P35: 75,480
B36: Ⅵ現金及び現金同等物の期末残高 Cash and Cash Equivalents at End of Period | F36: 34,833 | G36: 34,618 | H36: 29,462 | I36: 37,370 | J36: 47,878 | K36: 33,722 | L36: 45,452 | M36: 50,829 | N36: 64,870 | O36: 75,480 | P36: 86,192

Sheet Ⅲ-2-(4)_来期計画
L4: （単位：百万円、％ Unit: Million Yen, %）
F5: 実績 Result | K5: 計画 Plan
F6: 2019.3 | G6: 2020.3 | H6: 2021.3 | I6: 2022.3 | J6: 2023.3 | K6: 2024.3 | L6: 増減率
L7: VS. Prev. year
B8: (オートオークション Auto Auction Business）
C9: 出品手数料 Consignment Fees | F9: 15,269 | G9: 15,047 | H9: 14,151 | I9: 15,198 | J9: 16,570 | K9: 16,886 | L9: 1.9
C10: 成約手数料 Contract Completion Fees | F10: 14,898 | G10: 14,499 | H10: 14,088 | I10: 15,088 | J10: 15,721 | K10: 16,361 | L10: 4.1
C11: 落札手数料 Successful Bid Fees | F11: 22,313 | G11: 21,758 | H11: 21,573 | I11: 23,076 | J11: 23,985 | K11: 24,839 | L11: 3.6
C12: バイクオークション手数料 Motorcycle Auction Fees | F12: 784 | G12: 798 | H12: 863 | I12: 888 | J12: 1,014 | K12: 1,015 | L12: 0.1
C13: 商品売上高 Net Sales of Goods | F13: 2,408 | G13: 2,232 | H13: 1,456 | I13: 1,491 | J13: 2,659 | K13: 2,524 | L13: ▲ 5.0
C14: その他の営業収入 Other Revenues | F14: 9,009 | G14: 9,013 | H14: 8,914 | I14: 9,113 | J14: 9,354 | K14: 9,561 | L14: 2.2
B15: オートオークション計 Auto Auction Business Total | F15: 64,684 | G15: 63,350 | H15: 61,048 | I15: 64,858 | J15: 69,304 | K15: 71,189 | L15: 2.7
B16: (中古自動車等買取販売 Used Vehicle Sales/Purchases Business)
C17: 中古自動車買取販売 Used Vehicle Sales/Purchases | F17: 5,702 | G17: 5,059 | H17: 4,947 | I17: 5,296 | J17: 6,187 | K17: 5,573 | L17: ▲ 9.9
C18: 事故現状車買取販売 Accident-damaged Vehicle Sales/Purchases | F18: 3,998 | G18: 4,039 | H18: 3,699 | I18: 4,004 | J18: 4,204 | K18: 5,247 | L18: 24.8
B19: 中古自動車等買取販売計 Used Vehicle Sales/Purchases Business Total | F19: 9,701 | G19: 9,099 | H19: 8,646 | I19: 9,300 | J19: 10,391 | K19: 10,820 | L19: 4.1
B20: (リサイクル Recycling Business)
C21: 資源リサイクル Resource Recycling | F21: 4,910 | G21: 4,701 | H21: 4,143 | I21: 5,352 | J21: 5,056 | K21: 4,966 | L21: ▲ 1.8
C22: プラントリサイクル Industrial Plant Recycling | F22: - | G22: 460 | H22: 685 | I22: 1,885 | J22: 3,925 | K22: 4,986 | L22: 27.0
C23: 中古自動車の輸出手続代行サービス Used Vehicle Export Clearing Service | F23: 518 | G23: 450 | H23: 263 | I23: - | J23: - | K23: - | L23: -
C24: その他 Other Revenues | F24: 93 | G24: 80 | H24: 87 | I24: 85 | J24: - | K24: - | L24: -
B25: リサイクル計 Recycling Business Total | F25: 4,910 | G25: 5,161 | H25: 4,829 | I25: 7,238 | J25: 8,982 | K25: 9,952 | L25: 10.8
B26: (その他 Other Business)
C27: リサイクル Recycling | F27: 4,910 | G27: 5,161 | H27: 4,829 | I27: 7,238 | J27: - | K27: - | L27: -
C28: 廃ゴムのリサイクル Revenues from Recycling Scrap Rubbers | F28: - | G28: - | H28: - | I28: - | J28: - | K28: - | L28: -
C29: 中古自動車の輸出手続代行サービス Used Vehicle Export Clearing Service | F29: 518 | G29: 450 | H29: 263 | I29: - | J29: - | K29: - | L29: -
C30: その他 Other Revenues | F30: 611 | G30: 531 | H30: 351 | I30: 85 | J30: 99 | K30: 438 | L30: 340.3
B31: その他計 Other Business Total | F31: 611 | G31: 531 | H31: 351 | I31: 85 | J31: 99 | K31: 438 | L31: 340.3
B32: 売上高 Net Sales | F32: 79,908 | G32: 78,143 | H32: 74,874 | I32: 81,482 | J32: 88,778 | K32: 92,400 | L32: 4.1
B33: 営業利益 Operating Profit | F33: 37,123 | G33: 36,009 | H33: 36,227 | I33: 41,574 | J33: 43,778 | K33: 45,300 | L33: 3.5
B34: 経常利益 Ordinary Profit | F34: 38,039 | G34: 36,710 | H34: 36,996 | I34: 42,374 | J34: 44,491 | K34: 46,000 | L34: 3.4
B35: 親会社株主に帰属する当期純利益 Profit Attributable to Owners of Parent | F35: 25,543 | G35: 20,634 | H35: 4,022 | I35: 29,745 | J35: 30,008 | K35: 30,800 | L35: 2.6
B36: ※2011年2月に設立した株式会社USSﾛｼﾞｽﾃｨｸｽ・ｲﾝﾀｰﾅｼｮﾅﾙ・ｻｰﾋﾞｽの中古自動車の輸出手続サービス業は、その他の事業に対する割合が過少であるため、表示を省略しております。
B37: * The used car export procedure service of USS Logistics International Service Co., Ltd., which was established in February 2011, is not shown because this company was a negligible percentage of the other business segment in the fiscal year ended March 31, 2011.
L41: （単位：台、％、円、社、店 Unit: No. of Vehicles, %, Yen, No. of Companies, No. of Shops）
B42: 出品台数 No. of Consigned Vehicles | F42: 2,930,127 | G42: 2,924,052 | H42: 2,661,084 | I42: 2,731,669 | J42: 2,958,598 | K42: 3,000,000 | L42: 1.4
B43: 成約台数 No. of Contracted Vehicles | F43: 1,825,991 | G43: 1,772,443 | H43: 1,680,810 | I43: 1,787,302 | J43: 1,863,988 | K43: 1,880,000 | L43: 0.9
B44: 成約率 Contract Completion Rate | F44: 62.3 | G44: 60.6 | H44: 63.2 | I44: 65.4 | J44: 63.0 | K44: 62.7 | L44: -
B45: 1台当たり出品手数料 Consignment Fees per Vehicle consigned | F45: 5,243 | G45: 5,178 | H45: 5,348 | I45: 5,593 | J45: 5,629 | K45: 5,661 | L45: 0.6
B46: 1台当たり成約手数料 Contract Completion Fees per Vehicle Contracts completed | F46: 8,213 | G46: 8,236 | H46: 8,436 | I46: 8,491 | J46: 8,483 | K46: 8,756 | L46: 3.2
B47: 1台当たり落札手数料 Successful Bidding Fees per Vehicle Contracts completed | F47: 12,225 | G47: 12,280 | H47: 12,841 | I47: 12,924 | J47: 12,880 | K47: 13,223 | L47: 2.7
B48: 現車会員数 On-site Auction Members | F48: 48,723 | G48: 48,182 | H48: 48,058 | I48: 48,362 | J48: 48,490 | K48: 48,600 | L48: 0.2
B49: CIS（インターネット）会員数 CIS (Internet) Members | F49: 31,639 | G49: 31,998 | H49: 32,538 | I49: 33,359 | J49: 33,934 | K49: 34,540 | L49: 1.8
B50: TV（衛星）会員数 TV (Satellite Auction) Members | F50: 2,468 | G50: 2,342 | H50: 2,197 | I50: 2,081 | J50: 1,981 | K50: 1,770 | L50: ▲ 10.7
B51: ラビット店舗数 Rabbit Chain Shops | F51: 158 | G51: 152 | H51: 143 | I51: 144 | J51: 147 | K51: 147 | L51: 0.0
L54: （単位：百万円、％ Unit: Million Yen, %）
B55: 設備投資（支出ベース） Capital Expenditures（Terms of Cash Flows） | F55: 2,428 | G55: 4,523 | H55: 8,985 | I55: 2,036 | J55: 4,567 | K55: 4,400 | L55: ▲ 3.7
B56: 減価償却費 Depreciation | F56: 5,299 | G56: 5,037 | H56: 5,334 | I56: 4,959 | J56: 4,626 | K56: 4,701 | L56: 1.6

Sheet Ⅳ_計算式
B4: 本資料における各項目の計算式は下記のとおりです。
C6: (1) | D6: 売上総利益率 ＝ 売上総利益÷売上高×100％
C7: (2) | D7: 販売費及び一般管理費率 ＝ 販売費及び一般管理費÷売上高×100％
C8: (3) | D8: 営業利益率 ＝ 営業利益÷売上高×100％
C9: (4) | D9: 法人税率 ＝ 法人税等÷税金等調整前当期純利益×100％
C10: (5) | D10: EPS ＝ 親会社株主に帰属する当期純利益÷期中平均株式数
D11: ※期中平均株式数には、USS従業員持株会専用信託が保有する自己株式が含まれております。
C12: (6) | D12: ROE ＝ 親会社株主に帰属する当期純利益÷自己資本（期首・期末平均）×100％
C13: (7) | D13: ROA ＝ 経常利益÷総資産（期首・期末平均）×100％
C14: (8) | D14: 配当性向 ＝ 配当金総額÷親会社株主に帰属する当期純利益×100％
D15: ※2015年3月期より上記計算式としております。
C16: (9) | D16: 自己資本比率 ＝ 自己資本÷総資産×100％
C17: (10) | D17: 外部落札比率 ＝ 外部落札台数÷USSグループ落札台数 ×100％
C18: (11) | D18: 1台当たり出品（成約、落札）手数料 ＝ 連結相殺前出品（成約、落札）手数料÷出品（成約）台数
C19: (12) | D19: 過去X年平均増減率 ＝ ｛（当期数値÷X年前数値）＾（1÷X年）-1｝×100％
B22: The calculating formula in this material is as follows.
C24: (1) | D24: Gross Profit Margin ＝ Gross Profit / Net Sales ×100%
C25: (2) | D25: Selling, General and Administrative Expenses Ratio ＝ Selling, General and Administrative Expenses / Net Sales ×100%
C26: (3) | D26: Operating Margin ＝ Operating Profit / Net Sales ×100%
C27: (4) | D27: Tax Rate ＝ Income Taxes / Profit Before Income Taxes ×100%
C28: (5) | D28: EPS ＝ Profit Attributable to Owners of Parent / Average number of shares outstanding during the period
D29: *Average number of shares outstanding during the period includes shares held by the USS Employee Stock Ownership Plan Trust.
C30: (6) | D30: ROE ＝ Profit Attributable to Owners of Parent / Equity Capital (average at beginning and end of year) ×100%
C31: (7) | D31: ROA ＝ Ordinary Profit / Total Assets (average at beginning and end of year) ×100%
C32: (8) | D32: Dividend Payout Rate ＝ Total Dividends (fiscal year) / Profit Attributable to Owners of Parent ×100%
D33: *Effective from the fiscal year ended March 2015, the Company has adopted the above-mentioned formula.
C34: (9) | D34: Equity Ratio ＝ Equity Capital / Total assets ×100%
C35: (10) | D35: Ratio of Successful Off-site Bids ＝ Successful Off-site Bids / USS Group Successful Bids ×100%
C36: (11) | D36: Fees per Vehicle ＝ Fees for Vehicles before eliminations for consolidation / No. of vehicles
C37: (12) | D37: Avg YoY Change (X year period) ＝ {(Number for current FY(CY) / Number for X years earlier)＾(1 / X years)-1} ×100%

Sheet Ⅴ_注記事項(1)
B4: 本資料における注記事項は下記のとおりです。
C6: Ⅰ | D6: 主要データ（年度）
F7: ※CIS（インターネット）会員およびTV（衛星）会員への入会条件として現車会員であることが求められるため、CIS（インターネット）会員・TV（衛星）会員は必ず現車会員となります。
F8: ※自己株式数には、USS従業員持株会専用信託が所有する株式を含めております。
F9: ※1株当たりデータ、発行済株式数（自己株式除く）および自己株式数は、株式分割（2013年10月1日効力発生日）を遡及して修正表示しております。
F10: ※2015.3期までの当期純利益は、親会社株主に帰属する当期純利益として表示しております。
F11: ※「従業員等に信託を通じて自社の株式を交付する取引に関する実務上の取扱い」（実務対応報告第30号 平成27年3月26日）を2015年3月期より適用しているため、2014年3月期については遡及適用後の連結財務諸表となっております。
F12: ※「『税効果会計に係る会計基準』の一部改正」（企業会計基準第28号 平成30年2月16日）等を2019.3期から適用しており、2018.3期の資産、負債は遡及して修正表示しております。
C13: Ⅱ | D13: オートオークションデータ
D14: 1. 業界データ
E15: (1) 自動車業界関連指標の推移（暦年）
F16: ※バス、トラックを含む台数を記載しております。
E17: (3) 業態別オートオークション出品台数（暦年）
F18: ※企業系とはオークション会場の経営を主業とする企業により運営されている会場をいいます。
F19: ※JU系とは(一社)日本中古自動車販売協会連合会傘下の各都道府県中古自動車販売商工組合により運営されている会場をいいます。
F20: ※メーカー・ディーラー系とは自動車メーカーおよびその関連会社またはメーカー系ディーラーにより運営される会場をいいます。
F21: ※㈱ユーストカーの公表数値の修正にともない、2021年の企業系の出品台数を遡及修正しております。
E22: (4) オートオークション業界グループ別出品台数シェア（暦年）
F23: ※㈱ジェイ・エー・エーの子会社化にともない、2017年10月以降のJAAグループの出品台数を、USSグループに含めております。
F24: ※㈱ユーストカーの公表数値の修正にともない、2021年のその他の出品台数とグループ別シェアを遡及修正しております。
B26: The note in this material is as follows
C28: Ⅰ | D28: Main Financial Indicators (Fiscal Year)
F29: * All CIS (Internet) and TV (Satellite Auction) members are also on-site auction members because on-site membership is a requirement for these other two membership categories.
F30: * Treasury shares includes shares held by the USS Employee Stock Ownership Plan Trust.
F31: * Per Share Information, Number of Shares Outstanding (excl. Treasury Shares) and Treasury Shares have been retroactively adjusted for the stock split on October 1, 2013.
F32: * Profit for the period up to the fiscal year ended March 2015 is presented as Profit Attributable to Owners of Parent.
F33: * The Company has applied the Practical Solution on Transactions of Delivering the Company's Own Stock to Employees etc. through Trusts (Practical Issue Task Force (PITF) No. 30 issued on March 26, 2015) from the fiscal year ended March 2015.
F34: The consolidated financial statements for the fiscal year ended March 2014 are restated to retrospectively apply the aforementioned standards.
F35: * Partial Amendments to Accounting Standard for Tax Effect Accounting, etc. (ASBJ Statement No. 28, February 16, 2018) are applied from the fiscal year ended March 2019.
F36: The values of assets and liabilities for the fiscal year ended March 2018 are retroactively adjusted.
C37: Ⅱ | D37: Auto Auction Data
D38: 1. Industry Data
E39: (1) Automobile Industry Statistics (Calendar Year)
F40: * All kinds of vehicles are listed, including buses and trucks.
E41: (3) Market Share by Auction Site Category (Calendar Year)
F42: *Company-affiliated is sites operated by a company engaged primarily in the auto auction business.
F43: *JU-affiliated is sites operated by prefectural used car sales associations of JAPAN USED CAR DEALERS ASSOCIATION．
F44: *Manufacturer/Dealer-affiliated is sites operated by auto manufacturers, their subsidiaries or dealers．
F45: *The number of company-affiliated vehicles consigned in 2021 has been retroactively adjusted due to a revision of data published by USEDCAR Co., Ltd.
E46: (4) Market Share by Auto Auction Industry Group (Calendar Year)
F47: *As JAA has become a subsidiary, the vehicle consignment data reported by the USS Group from October 2017 onward includes the number of vehicles consigned to the JAA Group.
F48: *The number of other vehicles consigned and the share in 2021 have been retroactively adjusted due to a revision of data published by USEDCAR Co., Ltd.

Sheet Ⅴ_注記事項(2)
B4: 本資料における注記事項は下記のとおりです。
C6: Ⅱ | D6: オートオークションデータ
D7: 1.業界データ
E8: (5) オートオークション会場出品台数ランキング（暦年）
F9: ※(株)ユーストカーのデータを基に、現車オークション会場のみを対象としております。
D10: 2.USSデータ
E11: (1) USS会場別オートオークション実績（年度）
F12: ※低額車とは、年式が古く多走行の車をいいます。
F13: ※JBAの実績は含めておりません。
E14: (2) USSオートオークション月次推移（年度）
F15: ※JBAの実績は含めておりません。
C16: Ⅲ | D16: 決算データ等
D17: 1. セグメント
E18: (1) 事業の種類別セグメントの状況
F19: ※2023年3月期より、「その他」に含まれていた「リサイクル」を報告セグメントとし、2022年3月期以前の数値は変更後の区分に基づき作成しております。
E20: (3) オートオークション － 売上内訳推移
F21: ※売上内訳は、連結数値を使用しております。
F22: ※低額車の定義を見直したことにともない、2019.3期以前の1台当たり手数料 低額車除く（JBA除く）は、遡及して修正表示しております。
E23: (4) オートオークション － 低額車推移（JBA除く）
F24: ※2017年10月よりJAA、HAA神戸の実績を含めております。
F25: ※低額車の定義を見直したことにともない、2019.3期以前の低額車取扱台数は遡及して修正表示しております。
B27: The note in this material is as follows
C29: Ⅱ | D29: Auto Auction Data
D30: 1.Industry Data
E31: (5) Ranking of Auto Auction Sites by Number of Consigned Vehicles (Calendar Year)
F32: * The above ranking includes only on-site auction and is based on the data provided by USEDCAR Co., Ltd.
D33: 2. USS Data
E34: (1) Auto Auction Results at USS Auction Sites (Fiscal Year)
F35: * Lower-priced vehicles is old and/or high mileage vehicles.
F36: *The figures do not include JBA data.
E37: (2) Monthly USS Auto Auction Results (Fiscal Year)
F38: *The figures do not include JBA data.
C39: Ⅲ | D39: Financial Data
D40: 1. Segment Information
E41: (1) Segment Information by Business Category
F42: * Beginning with 2023.3, the recycle business, which was previously included in “other,” is a reportable segment. Figures for “recycling” and “other” have been revised to conform with this change.
E43: (3) Auto Auction Business - Sales Composition
F44: * Net Sales figures are after eliminations for consolidation.
F45: *Fees per Vehicle (excl. JBA) for the periods before 2019.3 are retroactively adjusted to conform to the revised definition of Lower-priced vehicles.
E46: (4) Auto Auction Business - Lower-priced vehicles Auction (excl. JBA)
F47: *The figures in this page include JAA and HAA Kobe from October 2017 onward.
F48: *Lower-priced vehicles Auction Data for the periods before 2019.3 are retroactively adjusted to conform to the revised definition of Lower-priced vehicles.

Sheet Ⅴ_注記事項(3)
B4: 本資料における注記事項は下記のとおりです。
C6: Ⅲ | D6: 決算データ等
D7: 1. セグメント
E8: (5) オートオークション － 会員数および外部落札情報（JBA除く）
F9: ※CIS（インターネット）会員およびTV（衛星）会員への入会条件として現車会員であることが求められるため、CIS（インターネット）会員・TV（衛星）会員は必ず現車会員となります。
F10: ※CIS（インターネット）およびTV（衛星）による落札を「外部落札」と表します。
F11: ※2016.3期において、TV（衛星）落札台数の集計方法を変更しております。
F12: ※オークションシステムの変更にともない、HAA神戸は2018年8月より、JAAは2019年1月より外部落札台数の集計に含めております。
D13: 2. 連結
E14: (1) 連結損益計算書
F15: ※2015.3期までの少数株主利益は、非支配株主に帰属する当期純利益として表示しております。
F16: ※2015.3期までの当期純利益は、親会社株主に帰属する当期純利益として表示しております。
E17: (2) 連結貸借対照表
F18: ※2013.3期までの退職給付引当金は、退職給付に係る負債として表示しております。
F19: ※2015.3期までの少数株主持分は、非支配株主持分として表示しております。
F20: ※「『税効果会計に係る会計基準』の一部改正」（企業会計基準第28号 平成30年2月16日）等を2019.3期から適用しており、2018.3期の資産、負債は遡及して修正表示しております。
B27: The note in this material is as follows
C29: Ⅲ | D29: Financial Data
D30: 1. Segment Information
E31: (5) Auto Auction Business - Members and Successful Off-site Bids (excl. JBA)
F32: *All CIS (Internet) and TV (Satellite auction) members are also on-site auction members because on-site membership is a requirement for these other two membership categories.
F33: *Successful Off-site Bids include bids by CIS (Internet) and TV (Satellite Auction) members.
F34: *The basis of aggregating successful bids received via satellite TV for calculating the off-site successful bid ratio is changed in the fiscal year ended March 2016.
F35: *Following the changes in the auction system, HAA Kobe and JAA are included in the aggregation of successful off-site bids from August 2018 and January 2019, respectively.
D36: 2. Consolidated Basis
E37: (1) Consolidated Statements of Income
F38: * Minority Interests in Income for the period up to the fiscal year ended March 2015 is presented as Profit Attributable to Non-controlling Interests.
F39: * Net Income for the period up to the fiscal year ended March 2015 is presented as Profit Attributable to Owners of Parent.
E40: (2) Consolidated Balance Sheet
F41: * Provision for Retirement Benefits for the period up to the fiscal year ended March 2013 is presented as Retirement Benefit Liability.
F42: * Minority Interests for the period up to the fiscal year ended March 2015 is presented as Non-controlling Interests.
F43: * Partial Amendments to Accounting Standard for Tax Effect Accounting, etc. (ASBJ Statement No. 28, February 16, 2018) are applied from the fiscal year ended March 2019.
F44: The values of assets and liabilities for the fiscal year ended March 2018 are retroactively adjusted.

Sheet 取扱の注意
D11: 当資料取り扱い上の注意点
D13: 当資料には将来見通しが含まれております。将来見通しは現在入手可能な情報から得られた当社の経営者の判断に基づいております。この将来見通しは仮定または仮定に基づく根拠が含まれており、環境によっては想定された事実や根拠は実際の結果とは異なる場合があります。当社または当社の経営者は将来の結果についての期待または確信を述べていますが、その期待や確信、あるいはそれに近い結果が実際に達成されるという保証はありません。また法令上、別途の定めがある場合を除き、当社はいかなる将来見通しも最新のものとする義務を負っておりません。
D18: Disclaimer Regarding Forward-looking Statements
D20: These materials include forward-looking statements concerning future operating results. Those statements are based on the judgment of the Company’s management using information available at the time that the projections of future operating results were made. Therefore, those statements include assumptions. Actual results may differ significantly from projected results due to a number of factors, including changes in the Company's business environment. While the Company and its management have expressed expectations concerning future operating results herein, the Company and its management do not guarantee that those expectations or operating results will in face be achieved, wholly or partially. Except where stipulated by law or separately provided for, the Company shall be under no obligation to update its future expectations.
